Workbook

Sheet Calcul CB
B1: OUTIL DE DIMENSIONNEMENT DU TROISIEME POINT HYDRAULIQUE
B2: Version 1 du 17/3/2016 par Vincent
B5: Mesures à renseigner | G5: fendt | H5: valtra
B6: Mesure 1 | C6: 820 | G6: 840 | H6: 800
B7: Mesure 2 | C7: 450 | G7: 500 | H7: 420
B8: Mesure 3 | C8: 330 | G8: 150 | H8: 225
B9: Mesure 4 | C9: 170 | G9: 310 | H9: 100
B10: Mesure 5 | C10: 480 | G10: 440 | H10: 590
B11: Mesure 6 | C11: 850 | G11: 940 | H11: 780
B13: Triangle équipé d'une lumière | G13: Triangle équipé d'une bascule
C14: X | D14: Y | H14: X | I14: Y
B15: AB (lumière) | C15: -35 | D15: 630 | G15: AB (bascule) | H15: -0.65 | I15: 775
B17: C | C17: =C8 -> 330 | D17: =C7 -> 450 | G17: C | H17: =C8 -> 330 | I17: =C7 -> 450
B18: A | C18: =C6 -> 820 | D18: 0 | G18: A | H18: =C6 -> 820 | I18: 0
B19: A' | C19: =$C$6*COS(ATAN(ABS(D19)/$C$6)) -> 767.0183761 | D19: =C9-C10 -> -310 | G19: A' | H19: =$C$6*COS(ATAN(ABS(I19)/$C$6)) -> 767.0183761 | I19: =C9-C10 -> -310
B20: A'' | C20: =$C$6*COS(ATAN(ABS(D20)/$C$6)) -> 747.4341463 | D20: =C11-C10 -> 370 | G20: A'' | H20: =$C$6*COS(ATAN(ABS(I20)/$C$6)) -> 747.4341463 | I20: =C11-C10 -> 370
B22: CB = CO + OA + AB | C22: X | D22: Y | E22: Longueur | G22: CB = CO + OA + AB | H22: X | I22: Y | J22: Longueur
B23: CB (bras horizontale) | C23: =-C$17+C18+C$15 -> 455 | D23: =-D$17+D18+D$15 -> 180 | E23: =SQRT(C23*C23+D23*D23) -> 489.3107397 | G23: CB (bras horizontale) | H23: =-H$17+H18+H$15 -> 489.35 | I23: =-I$17+I18+I$15 -> 325 | J23: =SQRT(H23*H23+I23*I23) -> 587.4422716
B24: CB (bras en bas) | C24: =-C$17+C19+C$15 -> 402.0183761 | D24: =-D$17+D19+D$15 -> -130 | E24: =SQRT(C24*C24+D24*D24) -> 422.5148219 | G24: CB (bras en bas) | H24: =-H$17+H19+H$15 -> 436.3683761 | I24: =-I$17+I19+I$15 -> 15 | J24: =SQRT(H24*H24+I24*I24) -> 436.6261097
B25: CB (bras en haut) | C25: =-C$17+C20+C$15 -> 382.4341463 | D25: =-D$17+D20+D$15 -> 550 | E25: =SQRT(C25*C25+D25*D25) -> 669.8924363 | G25: CB (bras en haut) | H25: =-H$17+H20+H$15 -> 416.7841463 | I25: =-I$17+I20+I$15 -> 695 | J25: =SQRT(H25*H25+I25*I25) -> 810.3912787
B27: CB est la distance entre les points d'attache du troisième point pour que le triangle soit vertical
B28: Le vérin doit être choisi pour que CB = lo + 1/2 x c (lo : longueur min du vérin ; c : course du vérin)
B29: Exprimé autrement, il faut que le vérin soit à mi-course lorsque le triangle est vertical.

Sheet Choix vérin lumi
A1: Les vérins sont soit : | B1: !!!! NE SURTOUT PAS AJOUTER DE LIGNES EN AMONT DES BOUTONS !!! | N1: ||AB||² | O1: Xca | P1: Yca | Q1: ||CA||² | U1: ||AB||² | V1: Xca | W1: Yca | X1: ||CA||² | AB1: ||AB||² | AC1: Xca | AD1: Yca | AE1: ||CA||²
A2: - équipés : flexibles et clapet anti-retour inclus | N2: =('Calcul CB'!$C$15*'Calcul CB'!$C$15+'Calcul CB'!$D$15*'Calcul CB'!$D$15) -> 398125 | O2: ='Calcul CB'!C18-'Calcul CB'!$C$17 -> 490 | P2: ='Calcul CB'!D18-'Calcul CB'!$D$17 -> -450 | Q2: =(O2*O2+P2*P2) -> 442600 | U2: =('Calcul CB'!$C$15*'Calcul CB'!$C$15+'Calcul CB'!$D$15*'Calcul CB'!$D$15) -> 398125 | V2: ='Calcul CB'!C19-'Calcul CB'!$C$17 -> 437.0183761 | W2: ='Calcul CB'!D19-'Calcul CB'!$D$17 -> -760 | X2: =(V2*V2+W2*W2) -> 768585.0611 | AB2: =('Calcul CB'!$C$15*'Calcul CB'!$C$15+'Calcul CB'!$D$15*'Calcul CB'!$D$15) -> 398125 | AC2: ='Calcul CB'!C20-'Calcul CB'!$C$17 -> 417.4341463 | AD2: ='Calcul CB'!D20-'Calcul CB'!$D$17 -> -80 | AE2: =(AC2*AC2+AD2*AD2) -> 180651.2665
A3: - sans flexibles : clapet anti-retour inclus, flexibles (ref: TOP9H0900) à commander en plus
A4: - nu : flexibles (ref: TOP9H0900) ET clapet (ref: TOP912063A) à commander en plus | N4: Horizontale (coordonnées point B) | U4: bas | AB4: haut
G5: Lumière (CB - ( lo +0,5c) ) | M5: Générer dessins : | N5: rentré | P5: mi-course | R5: sorti | U5: rentré | W5: mi-course | Y5: sorti | AB5: rentré | AD5: mi-course | AF5: sorti
A6: Désignation AP | B6: catégorie | C6: lo | D6: c | E6: ref | G6: horizontale | I6: bas | K6: haut | N6: X | O6: Y | P6: X | Q6: Y | R6: X | S6: Y | U6: X | V6: Y | W6: X | X6: Y | Y6: X | Z6: Y | AB6: X | AC6: Y | AD6: X | AE6: Y | AF6: X | AG6: Y
B7: 2 | C7: 480 | D7: 160 | G7: ='Calcul CB'!$E$23-('Choix vérin lumi'!$C7+0.5*'Choix vérin lumi'!$D7) -> -70.68926029 | H7: =ABS(G7) -> 70.68926029 | I7: ='Calcul CB'!$E$24-('Choix vérin lumi'!$C7+0.5*'Choix vérin lumi'!$D7) -> -137.4851781 | J7: =ABS(I7) -> 137.4851781 | K7: ='Calcul CB'!$E$25-('Choix vérin lumi'!$C7+0.5*'Choix vérin lumi'!$D7) -> 109.8924363 | L7: =ABS(K7) -> 109.8924363 | N7: ='Calcul CB'!$C$17+$C7*COS(ACOS(($C7*$C7+$Q$2-$N$2)/(2*$C7*SQRT($Q$2)))-ATAN(ABS($P$2)/$O$2)) -> 775.2219712 | O7: ='Calcul CB'!$D$17+$C7*SIN(ACOS(($C7*$C7+$Q$2-$N$2)/(2*$C7*SQRT($Q$2)))-ATAN(ABS($P$2)/$O$2)) -> 629.3805908 | P7: ='Calcul CB'!$C$17+($C7+$D7*0.5)*COS(ACOS((($C7+$D7*0.5)*($C7+$D7*0.5)+$Q$2-$N$2)/(2*($C7+$D7*0.5)*SQRT($Q$2)))-ATAN(ABS($P$2)/$O$2)) -> 860.3923842 | Q7: ='Calcul CB'!$D$17+($C7+$D7*0.5)*SIN(ACOS((($C7+$D7*0.5)*($C7+$D7*0.5)+$Q$2-$N$2)/(2*($C7+$D7*0.5)*SQRT($Q$2)))-ATAN(ABS($P$2)/$O$2)) -> 629.6772628 | R7: ='Calcul CB'!$C$17+($C7+$D7)*COS(ACOS((($C7+$D7)*($C7+$D7)+$Q$2-$N$2)/(2*($C7+$D7)*SQRT($Q$2)))-ATAN(ABS($P$2)/$O$2)) -> 947.5727155 | S7: ='Calcul CB'!$D$17+($C7+$D7)*SIN(ACOS((($C7+$D7)*($C7+$D7)+$Q$2-$N$2)/(2*($C7+$D7)*SQRT($Q$2)))-ATAN(ABS($P$2)/$O$2)) -> 617.9402902 | T7: =(H7+J7+L7)/3 -> 106.0222916 | U7: ='Calcul CB'!$C$17+$C7*COS(ACOS(($C7*$C7+$X$2-$U$2)/(2*$C7*SQRT($X$2)))-ATAN(ABS($W$2)/$V$2)) -> 792.1923227 | V7: ='Calcul CB'!$D$17+$C7*SIN(ACOS(($C7*$C7+$X$2-$U$2)/(2*$C7*SQRT($X$2)))-ATAN(ABS($W$2)/$V$2)) -> 320.4690892 | W7: ='Calcul CB'!$C$17+($C7+$D7*0.5)*COS(ACOS((($C7+$D7*0.5)*($C7+$D7*0.5)+$X$2-$U$2)/(2*($C7+$D7*0.5)*SQRT($X$2)))-ATAN(ABS($W$2)/$V$2)) -> 872.7430686 | X7: ='Calcul CB'!$D$17+($C7+$D7*0.5)*SIN(ACOS((($C7+$D7*0.5)*($C7+$D7*0.5)+$X$2-$U$2)/(2*($C7+$D7*0.5)*SQRT($X$2)))-ATAN(ABS($W$2)/$V$2)) -> 312.0508736 | Y7: ='Calcul CB'!$C$17+($C7+$D7)*COS(ACOS((($C7+$D7)*($C7+$D7)+$X$2-$U$2)/(2*($C7+$D7)*SQRT($X$2)))-ATAN(ABS($W$2)/$V$2)) -> 950.6134314 | Z7: ='Calcul CB'!$D$17+($C7+$D7)*SIN(ACOS((($C7+$D7)*($C7+$D7)+$X$2-$U$2)/(2*($C7+$D7)*SQRT($X$2)))-ATAN(ABS($W$2)/$V$2)) -> 293.6703204 | AB7: ='Calcul CB'!$C$17+$C7*COS(ACOS(($C7*$C7+$AE$2-$AB$2)/(2*$C7*SQRT($AE$2)))-ATAN(ABS($AD$2)/$AC$2)) -> 435.2355037 | AC7: ='Calcul CB'!$D$17+$C7*SIN(ACOS(($C7*$C7+$AE$2-$AB$2)/(2*$C7*SQRT($AE$2)))-ATAN(ABS($AD$2)/$AC$2)) -> 918.3219926 | AD7: ='Calcul CB'!$C$17+($C7+$D7*0.5)*COS(ACOS((($C7+$D7*0.5)*($C7+$D7*0.5)+$AE$2-$AB$2)/(2*($C7+$D7*0.5)*SQRT($AE$2)))-ATAN(ABS($AD$2)/$AC$2)) -> 544.2930953 | AE7: ='Calcul CB'!$D$17+($C7+$D7*0.5)*SIN(ACOS((($C7+$D7*0.5)*($C7+$D7*0.5)+$AE$2-$AB$2)/(2*($C7+$D7*0.5)*SQRT($AE$2)))-ATAN(ABS($AD$2)/$AC$2)) -> 967.3765257 | AF7: ='Calcul CB'!$C$17+($C7+$D7)*COS(ACOS((($C7+$D7)*($C7+$D7)+$AE$2-$AB$2)/(2*($C7+$D7)*SQRT($AE$2)))-ATAN(ABS($AD$2)/$AC$2)) -> 664.6750052 | AG7: ='Calcul CB'!$D$17+($C7+$D7)*SIN(ACOS((($C7+$D7)*($C7+$D7)+$AE$2-$AB$2)/(2*($C7+$D7)*SQRT($AE$2)))-ATAN(ABS($AD$2)/$AC$2)) -> 995.5205229
A8: Vérin sans flexible, R/R, cat2, l0=550mm, c=285mm | B8: 2 | C8: 550 | D8: 285 | E8: TEVNN305028522 | G8: ='Calcul CB'!$E$23-('Choix vérin lumi'!$C8+0.5*'Choix vérin lumi'!$D8) -> -203.1892603 | H8: =ABS(G8) -> 203.1892603 | I8: ='Calcul CB'!$E$24-('Choix vérin lumi'!$C8+0.5*'Choix vérin lumi'!$D8) -> -269.9851781 | J8: =ABS(I8) -> 269.9851781 | K8: ='Calcul CB'!$E$25-('Choix vérin lumi'!$C8+0.5*'Choix vérin lumi'!$D8) -> -22.60756367 | L8: =ABS(K8) -> 22.60756367 | N8: ='Calcul CB'!$C$17+$C8*COS(ACOS(($C8*$C8+$Q$2-$N$2)/(2*$C8*SQRT($Q$2)))-ATAN(ABS($P$2)/$O$2)) -> 849.6157655 | O8: ='Calcul CB'!$D$17+$C8*SIN(ACOS(($C8*$C8+$Q$2-$N$2)/(2*$C8*SQRT($Q$2)))-ATAN(ABS($P$2)/$O$2)) -> 630.2760557 | P8: ='Calcul CB'!$C$17+($C8+$D8*0.5)*COS(ACOS((($C8+$D8*0.5)*($C8+$D8*0.5)+$Q$2-$N$2)/(2*($C8+$D8*0.5)*SQRT($Q$2)))-ATAN(ABS($P$2)/$O$2)) -> 1005.356898 | Q8: ='Calcul CB'!$D$17+($C8+$D8*0.5)*SIN(ACOS((($C8+$D8*0.5)*($C8+$D8*0.5)+$Q$2-$N$2)/(2*($C8+$D8*0.5)*SQRT($Q$2)))-ATAN(ABS($P$2)/$O$2)) -> 603.1316775 | R8: ='Calcul CB'!$C$17+($C8+$D8)*COS(ACOS((($C8+$D8)*($C8+$D8)+$Q$2-$N$2)/(2*($C8+$D8)*SQRT($Q$2)))-ATAN(ABS($P$2)/$O$2)) -> 1161.07755 | S8: ='Calcul CB'!$D$17+($C8+$D8)*SIN(ACOS((($C8+$D8)*($C8+$D8)+$Q$2-$N$2)/(2*($C8+$D8)*SQRT($Q$2)))-ATAN(ABS($P$2)/$O$2)) -> 530.8399992 | T8: =(H8+J8+L8)/3 -> 165.2606673 | U8: ='Calcul CB'!$C$17+$C8*COS(ACOS(($C8*$C8+$X$2-$U$2)/(2*$C8*SQRT($X$2)))-ATAN(ABS($W$2)/$V$2)) -> 862.8319312 | V8: ='Calcul CB'!$D$17+$C8*SIN(ACOS(($C8*$C8+$X$2-$U$2)/(2*$C8*SQRT($X$2)))-ATAN(ABS($W$2)/$V$2)) -> 313.6543615 | W8: ='Calcul CB'!$C$17+($C8+$D8*0.5)*COS(ACOS((($C8+$D8*0.5)*($C8+$D8*0.5)+$X$2-$U$2)/(2*($C8+$D8*0.5)*SQRT($X$2)))-ATAN(ABS($W$2)/$V$2)) -> 1000.347147 | X8: ='Calcul CB'!$D$17+($C8+$D8*0.5)*SIN(ACOS((($C8+$D8*0.5)*($C8+$D8*0.5)+$X$2-$U$2)/(2*($C8+$D8*0.5)*SQRT($X$2)))-ATAN(ABS($W$2)/$V$2)) -> 276.2445605 | Y8: ='Calcul CB'!$C$17+($C8+$D8)*COS(ACOS((($C8+$D8)*($C8+$D8)+$X$2-$U$2)/(2*($C8+$D8)*SQRT($X$2)))-ATAN(ABS($W$2)/$V$2)) -> 1128.836681 | Z8: ='Calcul CB'!$D$17+($C8+$D8)*SIN(ACOS((($C8+$D8)*($C8+$D8)+$X$2-$U$2)/(2*($C8+$D8)*SQRT($X$2)))-ATAN(ABS($W$2)/$V$2)) -> 206.9260242 | AB8: ='Calcul CB'!$C$17+$C8*COS(ACOS(($C8*$C8+$AE$2-$AB$2)/(2*$C8*SQRT($AE$2)))-ATAN(ABS($AD$2)/$AC$2)) -> 530.0314422 | AC8: ='Calcul CB'!$D$17+$C8*SIN(ACOS(($C8*$C8+$AE$2-$AB$2)/(2*$C8*SQRT($AE$2)))-ATAN(ABS($AD$2)/$AC$2)) -> 962.3352634 | AD8: ='Calcul CB'!$C$17+($C8+$D8*0.5)*COS(ACOS((($C8+$D8*0.5)*($C8+$D8*0.5)+$AE$2-$AB$2)/(2*($C8+$D8*0.5)*SQRT($AE$2)))-ATAN(ABS($AD$2)/$AC$2)) -> 749.5121648 | AE8: ='Calcul CB'!$D$17+($C8+$D8*0.5)*SIN(ACOS((($C8+$D8*0.5)*($C8+$D8*0.5)+$AE$2-$AB$2)/(2*($C8+$D8*0.5)*SQRT($AE$2)))-ATAN(ABS($AD$2)/$AC$2)) -> 1000.968051 | AF8: ='Calcul CB'!$C$17+($C8+$D8)*COS(ACOS((($C8+$D8)*($C8+$D8)+$AE$2-$AB$2)/(2*($C8+$D8)*SQRT($AE$2)))-ATAN(ABS($AD$2)/$AC$2)) -> 1000.115291 | AG8: ='Calcul CB'!$D$17+($C8+$D8)*SIN(ACOS((($C8+$D8)*($C8+$D8)+$AE$2-$AB$2)/(2*($C8+$D8)*SQRT($AE$2)))-ATAN(ABS($AD$2)/$AC$2)) -> 948.1671378
A9: Vérin nu, R/R, cat2, l0=610mm, c=350mm | B9: 2 | C9: 610 | D9: 350 | E9: TENNN305035022 | G9: ='Calcul CB'!$E$23-('Choix vérin lumi'!$C9+0.5*'Choix vérin lumi'!$D9) -> -295.6892603 | H9: =ABS(G9) -> 295.6892603 | I9: ='Calcul CB'!$E$24-('Choix vérin lumi'!$C9+0.5*'Choix vérin lumi'!$D9) -> -362.4851781 | J9: =ABS(I9) -> 362.4851781 | K9: ='Calcul CB'!$E$25-('Choix vérin lumi'!$C9+0.5*'Choix vérin lumi'!$D9) -> -115.1075637 | L9: =ABS(K9) -> 115.1075637 | N9: ='Calcul CB'!$C$17+$C9*COS(ACOS(($C9*$C9+$Q$2-$N$2)/(2*$C9*SQRT($Q$2)))-ATAN(ABS($P$2)/$O$2)) -> 914.7098333 | O9: ='Calcul CB'!$D$17+$C9*SIN(ACOS(($C9*$C9+$Q$2-$N$2)/(2*$C9*SQRT($Q$2)))-ATAN(ABS($P$2)/$O$2)) -> 623.8229296 | P9: ='Calcul CB'!$C$17+($C9+$D9*0.5)*COS(ACOS((($C9+$D9*0.5)*($C9+$D9*0.5)+$Q$2-$N$2)/(2*($C9+$D9*0.5)*SQRT($Q$2)))-ATAN(ABS($P$2)/$O$2)) -> 1106.978837 | Q9: ='Calcul CB'!$D$17+($C9+$D9*0.5)*SIN(ACOS((($C9+$D9*0.5)*($C9+$D9*0.5)+$Q$2-$N$2)/(2*($C9+$D9*0.5)*SQRT($Q$2)))-ATAN(ABS($P$2)/$O$2)) -> 561.9325112 | R9: ='Calcul CB'!$C$17+($C9+$D9)*COS(ACOS((($C9+$D9)*($C9+$D9)+$Q$2-$N$2)/(2*($C9+$D9)*SQRT($Q$2)))-ATAN(ABS($P$2)/$O$2)) -> 1289.575506 | S9: ='Calcul CB'!$D$17+($C9+$D9)*SIN(ACOS((($C9+$D9)*($C9+$D9)+$Q$2-$N$2)/(2*($C9+$D9)*SQRT($Q$2)))-ATAN(ABS($P$2)/$O$2)) -> 421.4544394 | T9: =(H9+J9+L9)/3 -> 257.7606673 | U9: ='Calcul CB'!$C$17+$C9*COS(ACOS(($C9*$C9+$X$2-$U$2)/(2*$C9*SQRT($X$2)))-ATAN(ABS($W$2)/$V$2)) -> 921.7027669 | V9: ='Calcul CB'!$D$17+$C9*SIN(ACOS(($C9*$C9+$X$2-$U$2)/(2*$C9*SQRT($X$2)))-ATAN(ABS($W$2)/$V$2)) -> 301.7170418 | W9: ='Calcul CB'!$C$17+($C9+$D9*0.5)*COS(ACOS((($C9+$D9*0.5)*($C9+$D9*0.5)+$X$2-$U$2)/(2*($C9+$D9*0.5)*SQRT($X$2)))-ATAN(ABS($W$2)/$V$2)) -> 1084.983044 | X9: ='Calcul CB'!$D$17+($C9+$D9*0.5)*SIN(ACOS((($C9+$D9*0.5)*($C9+$D9*0.5)+$X$2-$U$2)/(2*($C9+$D9*0.5)*SQRT($X$2)))-ATAN(ABS($W$2)/$V$2)) -> 234.9985964 | Y9: ='Calcul CB'!$C$17+($C9+$D9)*COS(ACOS((($C9+$D9)*($C9+$D9)+$X$2-$U$2)/(2*($C9+$D9)*SQRT($X$2)))-ATAN(ABS($W$2)/$V$2)) -> 1230.727461 | Z9: ='Calcul CB'!$D$17+($C9+$D9)*SIN(ACOS((($C9+$D9)*($C9+$D9)+$X$2-$U$2)/(2*($C9+$D9)*SQRT($X$2)))-ATAN(ABS($W$2)/$V$2)) -> 117.9005549 | AB9: ='Calcul CB'!$C$17+$C9*COS(ACOS(($C9*$C9+$AE$2-$AB$2)/(2*$C9*SQRT($AE$2)))-ATAN(ABS($AD$2)/$AC$2)) -> 618.2404524 | AC9: ='Calcul CB'!$D$17+$C9*SIN(ACOS(($C9*$C9+$AE$2-$AB$2)/(2*$C9*SQRT($AE$2)))-ATAN(ABS($AD$2)/$AC$2)) -> 987.6034241 | AD9: ='Calcul CB'!$C$17+($C9+$D9*0.5)*COS(ACOS((($C9+$D9*0.5)*($C9+$D9*0.5)+$AE$2-$AB$2)/(2*($C9+$D9*0.5)*SQRT($AE$2)))-ATAN(ABS($AD$2)/$AC$2)) -> 909.1735216 | AE9: ='Calcul CB'!$D$17+($C9+$D9*0.5)*SIN(ACOS((($C9+$D9*0.5)*($C9+$D9*0.5)+$AE$2-$AB$2)/(2*($C9+$D9*0.5)*SQRT($AE$2)))-ATAN(ABS($AD$2)/$AC$2)) -> 979.8896412 | AF9: ='Calcul CB'!$C$17+($C9+$D9)*COS(ACOS((($C9+$D9)*($C9+$D9)+$AE$2-$AB$2)/(2*($C9+$D9)*SQRT($AE$2)))-ATAN(ABS($AD$2)/$AC$2)) -> 1234.85559 | AG9: ='Calcul CB'!$D$17+($C9+$D9)*SIN(ACOS((($C9+$D9)*($C9+$D9)+$AE$2-$AB$2)/(2*($C9+$D9)*SQRT($AE$2)))-ATAN(ABS($AD$2)/$AC$2)) -> 770.681091
A10: Vérin équipé, R/R, cat1, l0=440mm, c=200mm | B10: 1 | C10: 440 | D10: 200 | E10: TEVHN305020011 | G10: ='Calcul CB'!$E$23-('Choix vérin lumi'!$C10+0.5*'Choix vérin lumi'!$D10) -> -50.68926029 | H10: =ABS(G10) -> 50.68926029 | I10: ='Calcul CB'!$E$24-('Choix vérin lumi'!$C10+0.5*'Choix vérin lumi'!$D10) -> -117.4851781 | J10: =ABS(I10) -> 117.4851781 | K10: ='Calcul CB'!$E$25-('Choix vérin lumi'!$C10+0.5*'Choix vérin lumi'!$D10) -> 129.8924363 | L10: =ABS(K10) -> 129.8924363 | N10: ='Calcul CB'!$C$17+$C10*COS(ACOS(($C10*$C10+$Q$2-$N$2)/(2*$C10*SQRT($Q$2)))-ATAN(ABS($P$2)/$O$2)) -> 733.6844131 | O10: ='Calcul CB'!$D$17+$C10*SIN(ACOS(($C10*$C10+$Q$2-$N$2)/(2*$C10*SQRT($Q$2)))-ATAN(ABS($P$2)/$O$2)) -> 625.0396943 | P10: ='Calcul CB'!$C$17+($C10+$D10*0.5)*COS(ACOS((($C10+$D10*0.5)*($C10+$D10*0.5)+$Q$2-$N$2)/(2*($C10+$D10*0.5)*SQRT($Q$2)))-ATAN(ABS($P$2)/$O$2)) -> 838.8727013 | Q10: ='Calcul CB'!$D$17+($C10+$D10*0.5)*SIN(ACOS((($C10+$D10*0.5)*($C10+$D10*0.5)+$Q$2-$N$2)/(2*($C10+$D10*0.5)*SQRT($Q$2)))-ATAN(ABS($P$2)/$O$2)) -> 630.6891636 | R10: ='Calcul CB'!$C$17+($C10+$D10)*COS(ACOS((($C10+$D10)*($C10+$D10)+$Q$2-$N$2)/(2*($C10+$D10)*SQRT($Q$2)))-ATAN(ABS($P$2)/$O$2)) -> 947.5727155 | S10: ='Calcul CB'!$D$17+($C10+$D10)*SIN(ACOS((($C10+$D10)*($C10+$D10)+$Q$2-$N$2)/(2*($C10+$D10)*SQRT($Q$2)))-ATAN(ABS($P$2)/$O$2)) -> 617.9402902 | T10: =(H10+J10+L10)/3 -> 99.35562489 | U10: ='Calcul CB'!$C$17+$C10*COS(ACOS(($C10*$C10+$X$2-$U$2)/(2*$C10*SQRT($X$2)))-ATAN(ABS($W$2)/$V$2)) -> 750.5905338 | V10: ='Calcul CB'!$D$17+$C10*SIN(ACOS(($C10*$C10+$X$2-$U$2)/(2*$C10*SQRT($X$2)))-ATAN(ABS($W$2)/$V$2)) -> 320.757581 | W10: ='Calcul CB'!$C$17+($C10+$D10*0.5)*COS(ACOS((($C10+$D10*0.5)*($C10+$D10*0.5)+$X$2-$U$2)/(2*($C10+$D10*0.5)*SQRT($X$2)))-ATAN(ABS($W$2)/$V$2)) -> 852.879163 | X10: ='Calcul CB'!$D$17+($C10+$D10*0.5)*SIN(ACOS((($C10+$D10*0.5)*($C10+$D10*0.5)+$X$2-$U$2)/(2*($C10+$D10*0.5)*SQRT($X$2)))-ATAN(ABS($W$2)/$V$2)) -> 315.1023318 | Y10: ='Calcul CB'!$C$17+($C10+$D10)*COS(ACOS((($C10+$D10)*($C10+$D10)+$X$2-$U$2)/(2*($C10+$D10)*SQRT($X$2)))-ATAN(ABS($W$2)/$V$2)) -> 950.6134314 | Z10: ='Calcul CB'!$D$17+($C10+$D10)*SIN(ACOS((($C10+$D10)*($C10+$D10)+$X$2-$U$2)/(2*($C10+$D10)*SQRT($X$2)))-ATAN(ABS($W$2)/$V$2)) -> 293.6703204 | AB10: ='Calcul CB'!$C$17+$C10*COS(ACOS(($C10*$C10+$AE$2-$AB$2)/(2*$C10*SQRT($AE$2)))-ATAN(ABS($AD$2)/$AC$2)) -> 385.0658976 | AC10: ='Calcul CB'!$D$17+$C10*SIN(ACOS(($C10*$C10+$AE$2-$AB$2)/(2*$C10*SQRT($AE$2)))-ATAN(ABS($AD$2)/$AC$2)) -> 886.540659 | AD10: ='Calcul CB'!$C$17+($C10+$D10*0.5)*COS(ACOS((($C10+$D10*0.5)*($C10+$D10*0.5)+$AE$2-$AB$2)/(2*($C10+$D10*0.5)*SQRT($AE$2)))-ATAN(ABS($AD$2)/$AC$2)) -> 515.9481437 | AE10: ='Calcul CB'!$D$17+($C10+$D10*0.5)*SIN(ACOS((($C10+$D10*0.5)*($C10+$D10*0.5)+$AE$2-$AB$2)/(2*($C10+$D10*0.5)*SQRT($AE$2)))-ATAN(ABS($AD$2)/$AC$2)) -> 956.9746422 | AF10: ='Calcul CB'!$C$17+($C10+$D10)*COS(ACOS((($C10+$D10)*($C10+$D10)+$AE$2-$AB$2)/(2*($C10+$D10)*SQRT($AE$2)))-ATAN(ABS($AD$2)/$AC$2)) -> 664.6750052 | AG10: ='Calcul CB'!$D$17+($C10+$D10)*SIN(ACOS((($C10+$D10)*($C10+$D10)+$AE$2-$AB$2)/(2*($C10+$D10)*SQRT($AE$2)))-ATAN(ABS($AD$2)/$AC$2)) -> 995.5205229
A11: Vérin sans flexible, R/C, cat2, l0=590mm, c=285mm | B11: 2 | C11: 590 | D11: 285 | E11: TCVNN305028522 | G11: ='Calcul CB'!$E$23-('Choix vérin lumi'!$C11+0.5*'Choix vérin lumi'!$D11) -> -243.1892603 | H11: =ABS(G11) -> 243.1892603 | I11: ='Calcul CB'!$E$24-('Choix vérin lumi'!$C11+0.5*'Choix vérin lumi'!$D11) -> -309.9851781 | J11: =ABS(I11) -> 309.9851781 | K11: ='Calcul CB'!$E$25-('Choix vérin lumi'!$C11+0.5*'Choix vérin lumi'!$D11) -> -62.60756367 | L11: =ABS(K11) -> 62.60756367 | N11: ='Calcul CB'!$C$17+$C11*COS(ACOS(($C11*$C11+$Q$2-$N$2)/(2*$C11*SQRT($Q$2)))-ATAN(ABS($P$2)/$O$2)) -> 892.9040839 | O11: ='Calcul CB'!$D$17+$C11*SIN(ACOS(($C11*$C11+$Q$2-$N$2)/(2*$C11*SQRT($Q$2)))-ATAN(ABS($P$2)/$O$2)) -> 626.7455581 | P11: ='Calcul CB'!$C$17+($C11+$D11*0.5)*COS(ACOS((($C11+$D11*0.5)*($C11+$D11*0.5)+$Q$2-$N$2)/(2*($C11+$D11*0.5)*SQRT($Q$2)))-ATAN(ABS($P$2)/$O$2)) -> 1049.424768 | Q11: ='Calcul CB'!$D$17+($C11+$D11*0.5)*SIN(ACOS((($C11+$D11*0.5)*($C11+$D11*0.5)+$Q$2-$N$2)/(2*($C11+$D11*0.5)*SQRT($Q$2)))-ATAN(ABS($P$2)/$O$2)) -> 587.7833581 | R11: ='Calcul CB'!$C$17+($C11+$D11)*COS(ACOS((($C11+$D11)*($C11+$D11)+$Q$2-$N$2)/(2*($C11+$D11)*SQRT($Q$2)))-ATAN(ABS($P$2)/$O$2)) -> 1203.509875 | S11: ='Calcul CB'!$D$17+($C11+$D11)*SIN(ACOS((($C11+$D11)*($C11+$D11)+$Q$2-$N$2)/(2*($C11+$D11)*SQRT($Q$2)))-ATAN(ABS($P$2)/$O$2)) -> 501.0440858 | T11: =(H11+J11+L11)/3 -> 205.2606673 | U11: ='Calcul CB'!$C$17+$C11*COS(ACOS(($C11*$C11+$X$2-$U$2)/(2*$C11*SQRT($X$2)))-ATAN(ABS($W$2)/$V$2)) -> 902.2359049 | V11: ='Calcul CB'!$D$17+$C11*SIN(ACOS(($C11*$C11+$X$2-$U$2)/(2*$C11*SQRT($X$2)))-ATAN(ABS($W$2)/$V$2)) -> 306.3125992 | W11: ='Calcul CB'!$C$17+($C11+$D11*0.5)*COS(ACOS((($C11+$D11*0.5)*($C11+$D11*0.5)+$X$2-$U$2)/(2*($C11+$D11*0.5)*SQRT($X$2)))-ATAN(ABS($W$2)/$V$2)) -> 1037.450826 | X11: ='Calcul CB'!$D$17+($C11+$D11*0.5)*SIN(ACOS((($C11+$D11*0.5)*($C11+$D11*0.5)+$X$2-$U$2)/(2*($C11+$D11*0.5)*SQRT($X$2)))-ATAN(ABS($W$2)/$V$2)) -> 260.0800733 | Y11: ='Calcul CB'!$C$17+($C11+$D11)*COS(ACOS((($C11+$D11)*($C11+$D11)+$X$2-$U$2)/(2*($C11+$D11)*SQRT($X$2)))-ATAN(ABS($W$2)/$V$2)) -> 1162.765467 | Z11: ='Calcul CB'!$D$17+($C11+$D11)*SIN(ACOS((($C11+$D11)*($C11+$D11)+$X$2-$U$2)/(2*($C11+$D11)*SQRT($X$2)))-ATAN(ABS($W$2)/$V$2)) -> 181.4358965 | AB11: ='Calcul CB'!$C$17+$C11*COS(ACOS(($C11*$C11+$AE$2-$AB$2)/(2*$C11*SQRT($AE$2)))-ATAN(ABS($AD$2)/$AC$2)) -> 588.1382642 | AC11: ='Calcul CB'!$D$17+$C11*SIN(ACOS(($C11*$C11+$AE$2-$AB$2)/(2*$C11*SQRT($AE$2)))-ATAN(ABS($AD$2)/$AC$2)) -> 980.5324086 | AD11: ='Calcul CB'!$C$17+($C11+$D11*0.5)*COS(ACOS((($C11+$D11*0.5)*($C11+$D11*0.5)+$AE$2-$AB$2)/(2*($C11+$D11*0.5)*SQRT($AE$2)))-ATAN(ABS($AD$2)/$AC$2)) -> 817.0488327 | AE11: ='Calcul CB'!$D$17+($C11+$D11*0.5)*SIN(ACOS((($C11+$D11*0.5)*($C11+$D11*0.5)+$AE$2-$AB$2)/(2*($C11+$D11*0.5)*SQRT($AE$2)))-ATAN(ABS($AD$2)/$AC$2)) -> 997.1194427 | AF11: ='Calcul CB'!$C$17+($C11+$D11)*COS(ACOS((($C11+$D11)*($C11+$D11)+$AE$2-$AB$2)/(2*($C11+$D11)*SQRT($AE$2)))-ATAN(ABS($AD$2)/$AC$2)) -> 1074.634743 | AG11: ='Calcul CB'!$D$17+($C11+$D11)*SIN(ACOS((($C11+$D11)*($C11+$D11)+$AE$2-$AB$2)/(2*($C11+$D11)*SQRT($AE$2)))-ATAN(ABS($AD$2)/$AC$2)) -> 909.5041885
A12: Vérin nu, R/R, cat1, l0=550mm, c=285mm | B12: 1 | C12: 550 | D12: 285 | E12: TENNN305028511 | G12: ='Calcul CB'!$E$23-('Choix vérin lumi'!$C12+0.5*'Choix vérin lumi'!$D12) -> -203.1892603 | H12: =ABS(G12) -> 203.1892603 | I12: ='Calcul CB'!$E$24-('Choix vérin lumi'!$C12+0.5*'Choix vérin lumi'!$D12) -> -269.9851781 | J12: =ABS(I12) -> 269.9851781 | K12: ='Calcul CB'!$E$25-('Choix vérin lumi'!$C12+0.5*'Choix vérin lumi'!$D12) -> -22.60756367 | L12: =ABS(K12) -> 22.60756367 | N12: ='Calcul CB'!$C$17+$C12*COS(ACOS(($C12*$C12+$Q$2-$N$2)/(2*$C12*SQRT($Q$2)))-ATAN(ABS($P$2)/$O$2)) -> 849.6157655 | O12: ='Calcul CB'!$D$17+$C12*SIN(ACOS(($C12*$C12+$Q$2-$N$2)/(2*$C12*SQRT($Q$2)))-ATAN(ABS($P$2)/$O$2)) -> 630.2760557 | P12: ='Calcul CB'!$C$17+($C12+$D12*0.5)*COS(ACOS((($C12+$D12*0.5)*($C12+$D12*0.5)+$Q$2-$N$2)/(2*($C12+$D12*0.5)*SQRT($Q$2)))-ATAN(ABS($P$2)/$O$2)) -> 1005.356898 | Q12: ='Calcul CB'!$D$17+($C12+$D12*0.5)*SIN(ACOS((($C12+$D12*0.5)*($C12+$D12*0.5)+$Q$2-$N$2)/(2*($C12+$D12*0.5)*SQRT($Q$2)))-ATAN(ABS($P$2)/$O$2)) -> 603.1316775 | R12: ='Calcul CB'!$C$17+($C12+$D12)*COS(ACOS((($C12+$D12)*($C12+$D12)+$Q$2-$N$2)/(2*($C12+$D12)*SQRT($Q$2)))-ATAN(ABS($P$2)/$O$2)) -> 1161.07755 | S12: ='Calcul CB'!$D$17+($C12+$D12)*SIN(ACOS((($C12+$D12)*($C12+$D12)+$Q$2-$N$2)/(2*($C12+$D12)*SQRT($Q$2)))-ATAN(ABS($P$2)/$O$2)) -> 530.8399992 | T12: =(H12+J12+L12)/3 -> 165.2606673 | U12: ='Calcul CB'!$C$17+$C12*COS(ACOS(($C12*$C12+$X$2-$U$2)/(2*$C12*SQRT($X$2)))-ATAN(ABS($W$2)/$V$2)) -> 862.8319312 | V12: ='Calcul CB'!$D$17+$C12*SIN(ACOS(($C12*$C12+$X$2-$U$2)/(2*$C12*SQRT($X$2)))-ATAN(ABS($W$2)/$V$2)) -> 313.6543615 | W12: ='Calcul CB'!$C$17+($C12+$D12*0.5)*COS(ACOS((($C12+$D12*0.5)*($C12+$D12*0.5)+$X$2-$U$2)/(2*($C12+$D12*0.5)*SQRT($X$2)))-ATAN(ABS($W$2)/$V$2)) -> 1000.347147 | X12: ='Calcul CB'!$D$17+($C12+$D12*0.5)*SIN(ACOS((($C12+$D12*0.5)*($C12+$D12*0.5)+$X$2-$U$2)/(2*($C12+$D12*0.5)*SQRT($X$2)))-ATAN(ABS($W$2)/$V$2)) -> 276.2445605 | Y12: ='Calcul CB'!$C$17+($C12+$D12)*COS(ACOS((($C12+$D12)*($C12+$D12)+$X$2-$U$2)/(2*($C12+$D12)*SQRT($X$2)))-ATAN(ABS($W$2)/$V$2)) -> 1128.836681 | Z12: ='Calcul CB'!$D$17+($C12+$D12)*SIN(ACOS((($C12+$D12)*($C12+$D12)+$X$2-$U$2)/(2*($C12+$D12)*SQRT($X$2)))-ATAN(ABS($W$2)/$V$2)) -> 206.9260242 | AB12: ='Calcul CB'!$C$17+$C12*COS(ACOS(($C12*$C12+$AE$2-$AB$2)/(2*$C12*SQRT($AE$2)))-ATAN(ABS($AD$2)/$AC$2)) -> 530.0314422 | AC12: ='Calcul CB'!$D$17+$C12*SIN(ACOS(($C12*$C12+$AE$2-$AB$2)/(2*$C12*SQRT($AE$2)))-ATAN(ABS($AD$2)/$AC$2)) -> 962.3352634 | AD12: ='Calcul CB'!$C$17+($C12+$D12*0.5)*COS(ACOS((($C12+$D12*0.5)*($C12+$D12*0.5)+$AE$2-$AB$2)/(2*($C12+$D12*0.5)*SQRT($AE$2)))-ATAN(ABS($AD$2)/$AC$2)) -> 749.5121648 | AE12: ='Calcul CB'!$D$17+($C12+$D12*0.5)*SIN(ACOS((($C12+$D12*0.5)*($C12+$D12*0.5)+$AE$2-$AB$2)/(2*($C12+$D12*0.5)*SQRT($AE$2)))-ATAN(ABS($AD$2)/$AC$2)) -> 1000.968051 | AF12: ='Calcul CB'!$C$17+($C12+$D12)*COS(ACOS((($C12+$D12)*($C12+$D12)+$AE$2-$AB$2)/(2*($C12+$D12)*SQRT($AE$2)))-ATAN(ABS($AD$2)/$AC$2)) -> 1000.115291 | AG12: ='Calcul CB'!$D$17+($C12+$D12)*SIN(ACOS((($C12+$D12)*($C12+$D12)+$AE$2-$AB$2)/(2*($C12+$D12)*SQRT($AE$2)))-ATAN(ABS($AD$2)/$AC$2)) -> 948.1671378
A13: Vérin équipé, R/R, cat1, l0=390mm, c=150mm | B13: 1 | C13: 390 | D13: 150 | E13: TEVHN305015011 | G13: ='Calcul CB'!$E$23-('Choix vérin lumi'!$C13+0.5*'Choix vérin lumi'!$D13) -> 24.31073971 | H13: =ABS(G13) -> 24.31073971 | I13: ='Calcul CB'!$E$24-('Choix vérin lumi'!$C13+0.5*'Choix vérin lumi'!$D13) -> -42.48517807 | J13: =ABS(I13) -> 42.48517807 | K13: ='Calcul CB'!$E$25-('Choix vérin lumi'!$C13+0.5*'Choix vérin lumi'!$D13) -> 204.8924363 | L13: =ABS(K13) -> 204.8924363 | N13: ='Calcul CB'!$C$17+$C13*COS(ACOS(($C13*$C13+$Q$2-$N$2)/(2*$C13*SQRT($Q$2)))-ATAN(ABS($P$2)/$O$2)) -> 682.9511951 | O13: ='Calcul CB'!$D$17+$C13*SIN(ACOS(($C13*$C13+$Q$2-$N$2)/(2*$C13*SQRT($Q$2)))-ATAN(ABS($P$2)/$O$2)) -> 615.907968 | P13: ='Calcul CB'!$C$17+($C13+$D13*0.5)*COS(ACOS((($C13+$D13*0.5)*($C13+$D13*0.5)+$Q$2-$N$2)/(2*($C13+$D13*0.5)*SQRT($Q$2)))-ATAN(ABS($P$2)/$O$2)) -> 759.5535732 | Q13: ='Calcul CB'!$D$17+($C13+$D13*0.5)*SIN(ACOS((($C13+$D13*0.5)*($C13+$D13*0.5)+$Q$2-$N$2)/(2*($C13+$D13*0.5)*SQRT($Q$2)))-ATAN(ABS($P$2)/$O$2)) -> 628.0694464 | R13: ='Calcul CB'!$C$17+($C13+$D13)*COS(ACOS((($C13+$D13)*($C13+$D13)+$Q$2-$N$2)/(2*($C13+$D13)*SQRT($Q$2)))-ATAN(ABS($P$2)/$O$2)) -> 838.8727013 | S13: ='Calcul CB'!$D$17+($C13+$D13)*SIN(ACOS((($C13+$D13)*($C13+$D13)+$Q$2-$N$2)/(2*($C13+$D13)*SQRT($Q$2)))-ATAN(ABS($P$2)/$O$2)) -> 630.6891636 | T13: =(H13+J13+L13)/3 -> 90.5627847 | U13: ='Calcul CB'!$C$17+$C13*COS(ACOS(($C13*$C13+$X$2-$U$2)/(2*$C13*SQRT($X$2)))-ATAN(ABS($W$2)/$V$2)) -> 696.6331842 | V13: ='Calcul CB'!$D$17+$C13*SIN(ACOS(($C13*$C13+$X$2-$U$2)/(2*$C13*SQRT($X$2)))-ATAN(ABS($W$2)/$V$2)) -> 317.0334319 | W13: ='Calcul CB'!$C$17+($C13+$D13*0.5)*COS(ACOS((($C13+$D13*0.5)*($C13+$D13*0.5)+$X$2-$U$2)/(2*($C13+$D13*0.5)*SQRT($X$2)))-ATAN(ABS($W$2)/$V$2)) -> 776.7184701 | X13: ='Calcul CB'!$D$17+($C13+$D13*0.5)*SIN(ACOS((($C13+$D13*0.5)*($C13+$D13*0.5)+$X$2-$U$2)/(2*($C13+$D13*0.5)*SQRT($X$2)))-ATAN(ABS($W$2)/$V$2)) -> 320.8969077 | Y13: ='Calcul CB'!$C$17+($C13+$D13)*COS(ACOS((($C13+$D13)*($C13+$D13)+$X$2-$U$2)/(2*($C13+$D13)*SQRT($X$2)))-ATAN(ABS($W$2)/$V$2)) -> 852.879163 | Z13: ='Calcul CB'!$D$17+($C13+$D13)*SIN(ACOS((($C13+$D13)*($C13+$D13)+$X$2-$U$2)/(2*($C13+$D13)*SQRT($X$2)))-ATAN(ABS($W$2)/$V$2)) -> 315.1023318 | AB13: ='Calcul CB'!$C$17+$C13*COS(ACOS(($C13*$C13+$AE$2-$AB$2)/(2*$C13*SQRT($AE$2)))-ATAN(ABS($AD$2)/$AC$2)) -> 326.4349579 | AC13: ='Calcul CB'!$D$17+$C13*SIN(ACOS(($C13*$C13+$AE$2-$AB$2)/(2*$C13*SQRT($AE$2)))-ATAN(ABS($AD$2)/$AC$2)) -> 839.9837054 | AD13: ='Calcul CB'!$C$17+($C13+$D13*0.5)*COS(ACOS((($C13+$D13*0.5)*($C13+$D13*0.5)+$AE$2-$AB$2)/(2*($C13+$D13*0.5)*SQRT($AE$2)))-ATAN(ABS($AD$2)/$AC$2)) -> 416.0798759 | AE13: ='Calcul CB'!$D$17+($C13+$D13*0.5)*SIN(ACOS((($C13+$D13*0.5)*($C13+$D13*0.5)+$AE$2-$AB$2)/(2*($C13+$D13*0.5)*SQRT($AE$2)))-ATAN(ABS($AD$2)/$AC$2)) -> 906.9630783 | AF13: ='Calcul CB'!$C$17+($C13+$D13)*COS(ACOS((($C13+$D13)*($C13+$D13)+$AE$2-$AB$2)/(2*($C13+$D13)*SQRT($AE$2)))-ATAN(ABS($AD$2)/$AC$2)) -> 515.9481437 | AG13: ='Calcul CB'!$D$17+($C13+$D13)*SIN(ACOS((($C13+$D13)*($C13+$D13)+$AE$2-$AB$2)/(2*($C13+$D13)*SQRT($AE$2)))-ATAN(ABS($AD$2)/$AC$2)) -> 956.9746422
A14: Vérin nu, R/R, cat2, l0=580mm, c=300mm | B14: 2 | C14: 580 | D14: 300 | E14: TENNN356030022 | G14: ='Calcul CB'!$E$23-('Choix vérin lumi'!$C14+0.5*'Choix vérin lumi'!$D14) -> -240.6892603 | H14: =ABS(G14) -> 240.6892603 | I14: ='Calcul CB'!$E$24-('Choix vérin lumi'!$C14+0.5*'Choix vérin lumi'!$D14) -> -307.4851781 | J14: =ABS(I14) -> 307.4851781 | K14: ='Calcul CB'!$E$25-('Choix vérin lumi'!$C14+0.5*'Choix vérin lumi'!$D14) -> -60.10756367 | L14: =ABS(K14) -> 60.10756367 | N14: ='Calcul CB'!$C$17+$C14*COS(ACOS(($C14*$C14+$Q$2-$N$2)/(2*$C14*SQRT($Q$2)))-ATAN(ABS($P$2)/$O$2)) -> 882.0385347 | O14: ='Calcul CB'!$D$17+$C14*SIN(ACOS(($C14*$C14+$Q$2-$N$2)/(2*$C14*SQRT($Q$2)))-ATAN(ABS($P$2)/$O$2)) -> 627.9141822 | P14: ='Calcul CB'!$C$17+($C14+$D14*0.5)*COS(ACOS((($C14+$D14*0.5)*($C14+$D14*0.5)+$Q$2-$N$2)/(2*($C14+$D14*0.5)*SQRT($Q$2)))-ATAN(ABS($P$2)/$O$2)) -> 1046.673363 | Q14: ='Calcul CB'!$D$17+($C14+$D14*0.5)*SIN(ACOS((($C14+$D14*0.5)*($C14+$D14*0.5)+$Q$2-$N$2)/(2*($C14+$D14*0.5)*SQRT($Q$2)))-ATAN(ABS($P$2)/$O$2)) -> 588.8498844 | R14: ='Calcul CB'!$C$17+($C14+$D14)*COS(ACOS((($C14+$D14)*($C14+$D14)+$Q$2-$N$2)/(2*($C14+$D14)*SQRT($Q$2)))-ATAN(ABS($P$2)/$O$2)) -> 1208.744321 | S14: ='Calcul CB'!$D$17+($C14+$D14)*SIN(ACOS((($C14+$D14)*($C14+$D14)+$Q$2-$N$2)/(2*($C14+$D14)*SQRT($Q$2)))-ATAN(ABS($P$2)/$O$2)) -> 496.9938159 | T14: =(H14+J14+L14)/3 -> 202.7606673 | U14: ='Calcul CB'!$C$17+$C14*COS(ACOS(($C14*$C14+$X$2-$U$2)/(2*$C14*SQRT($X$2)))-ATAN(ABS($W$2)/$V$2)) -> 892.4443622 | V14: ='Calcul CB'!$D$17+$C14*SIN(ACOS(($C14*$C14+$X$2-$U$2)/(2*$C14*SQRT($X$2)))-ATAN(ABS($W$2)/$V$2)) -> 308.3795938 | W14: ='Calcul CB'!$C$17+($C14+$D14*0.5)*COS(ACOS((($C14+$D14*0.5)*($C14+$D14*0.5)+$X$2-$U$2)/(2*($C14+$D14*0.5)*SQRT($X$2)))-ATAN(ABS($W$2)/$V$2)) -> 1035.153239 | X14: ='Calcul CB'!$D$17+($C14+$D14*0.5)*SIN(ACOS((($C14+$D14*0.5)*($C14+$D14*0.5)+$X$2-$U$2)/(2*($C14+$D14*0.5)*SQRT($X$2)))-ATAN(ABS($W$2)/$V$2)) -> 261.1643329 | Y14: ='Calcul CB'!$C$17+($C14+$D14)*COS(ACOS((($C14+$D14)*($C14+$D14)+$X$2-$U$2)/(2*($C14+$D14)*SQRT($X$2)))-ATAN(ABS($W$2)/$V$2)) -> 1166.926689 | Z14: ='Calcul CB'!$D$17+($C14+$D14)*SIN(ACOS((($C14+$D14)*($C14+$D14)+$X$2-$U$2)/(2*($C14+$D14)*SQRT($X$2)))-ATAN(ABS($W$2)/$V$2)) -> 178.055674 | AB14: ='Calcul CB'!$C$17+$C14*COS(ACOS(($C14*$C14+$AE$2-$AB$2)/(2*$C14*SQRT($AE$2)))-ATAN(ABS($AD$2)/$AC$2)) -> 573.3475845 | AC14: ='Calcul CB'!$D$17+$C14*SIN(ACOS(($C14*$C14+$AE$2-$AB$2)/(2*$C14*SQRT($AE$2)))-ATAN(ABS($AD$2)/$AC$2)) -> 976.4807244 | AD14: ='Calcul CB'!$C$17+($C14+$D14*0.5)*COS(ACOS((($C14+$D14*0.5)*($C14+$D14*0.5)+$AE$2-$AB$2)/(2*($C14+$D14*0.5)*SQRT($AE$2)))-ATAN(ABS($AD$2)/$AC$2)) -> 812.7578407 | AE14: ='Calcul CB'!$D$17+($C14+$D14*0.5)*SIN(ACOS((($C14+$D14*0.5)*($C14+$D14*0.5)+$AE$2-$AB$2)/(2*($C14+$D14*0.5)*SQRT($AE$2)))-ATAN(ABS($AD$2)/$AC$2)) -> 997.580923 | AF14: ='Calcul CB'!$C$17+($C14+$D14)*COS(ACOS((($C14+$D14)*($C14+$D14)+$AE$2-$AB$2)/(2*($C14+$D14)*SQRT($AE$2)))-ATAN(ABS($AD$2)/$AC$2)) -> 1084.031507 | AG14: ='Calcul CB'!$D$17+($C14+$D14)*SIN(ACOS((($C14+$D14)*($C14+$D14)+$AE$2-$AB$2)/(2*($C14+$D14)*SQRT($AE$2)))-ATAN(ABS($AD$2)/$AC$2)) -> 903.692062
A15: Vérin nu, R/R, cat2, l0=440mm, c=200mm | B15: 2 | C15: 440 | D15: 200 | E15: TENNN305020022 | G15: ='Calcul CB'!$E$23-('Choix vérin lumi'!$C15+0.5*'Choix vérin lumi'!$D15) -> -50.68926029 | H15: =ABS(G15) -> 50.68926029 | I15: ='Calcul CB'!$E$24-('Choix vérin lumi'!$C15+0.5*'Choix vérin lumi'!$D15) -> -117.4851781 | J15: =ABS(I15) -> 117.4851781 | K15: ='Calcul CB'!$E$25-('Choix vérin lumi'!$C15+0.5*'Choix vérin lumi'!$D15) -> 129.8924363 | L15: =ABS(K15) -> 129.8924363 | N15: ='Calcul CB'!$C$17+$C15*COS(ACOS(($C15*$C15+$Q$2-$N$2)/(2*$C15*SQRT($Q$2)))-ATAN(ABS($P$2)/$O$2)) -> 733.6844131 | O15: ='Calcul CB'!$D$17+$C15*SIN(ACOS(($C15*$C15+$Q$2-$N$2)/(2*$C15*SQRT($Q$2)))-ATAN(ABS($P$2)/$O$2)) -> 625.0396943 | P15: ='Calcul CB'!$C$17+($C15+$D15*0.5)*COS(ACOS((($C15+$D15*0.5)*($C15+$D15*0.5)+$Q$2-$N$2)/(2*($C15+$D15*0.5)*SQRT($Q$2)))-ATAN(ABS($P$2)/$O$2)) -> 838.8727013 | Q15: ='Calcul CB'!$D$17+($C15+$D15*0.5)*SIN(ACOS((($C15+$D15*0.5)*($C15+$D15*0.5)+$Q$2-$N$2)/(2*($C15+$D15*0.5)*SQRT($Q$2)))-ATAN(ABS($P$2)/$O$2)) -> 630.6891636 | R15: ='Calcul CB'!$C$17+($C15+$D15)*COS(ACOS((($C15+$D15)*($C15+$D15)+$Q$2-$N$2)/(2*($C15+$D15)*SQRT($Q$2)))-ATAN(ABS($P$2)/$O$2)) -> 947.5727155 | S15: ='Calcul CB'!$D$17+($C15+$D15)*SIN(ACOS((($C15+$D15)*($C15+$D15)+$Q$2-$N$2)/(2*($C15+$D15)*SQRT($Q$2)))-ATAN(ABS($P$2)/$O$2)) -> 617.9402902 | T15: =(H15+J15+L15)/3 -> 99.35562489 | U15: ='Calcul CB'!$C$17+$C15*COS(ACOS(($C15*$C15+$X$2-$U$2)/(2*$C15*SQRT($X$2)))-ATAN(ABS($W$2)/$V$2)) -> 750.5905338 | V15: ='Calcul CB'!$D$17+$C15*SIN(ACOS(($C15*$C15+$X$2-$U$2)/(2*$C15*SQRT($X$2)))-ATAN(ABS($W$2)/$V$2)) -> 320.757581 | W15: ='Calcul CB'!$C$17+($C15+$D15*0.5)*COS(ACOS((($C15+$D15*0.5)*($C15+$D15*0.5)+$X$2-$U$2)/(2*($C15+$D15*0.5)*SQRT($X$2)))-ATAN(ABS($W$2)/$V$2)) -> 852.879163 | X15: ='Calcul CB'!$D$17+($C15+$D15*0.5)*SIN(ACOS((($C15+$D15*0.5)*($C15+$D15*0.5)+$X$2-$U$2)/(2*($C15+$D15*0.5)*SQRT($X$2)))-ATAN(ABS($W$2)/$V$2)) -> 315.1023318 | Y15: ='Calcul CB'!$C$17+($C15+$D15)*COS(ACOS((($C15+$D15)*($C15+$D15)+$X$2-$U$2)/(2*($C15+$D15)*SQRT($X$2)))-ATAN(ABS($W$2)/$V$2)) -> 950.6134314 | Z15: ='Calcul CB'!$D$17+($C15+$D15)*SIN(ACOS((($C15+$D15)*($C15+$D15)+$X$2-$U$2)/(2*($C15+$D15)*SQRT($X$2)))-ATAN(ABS($W$2)/$V$2)) -> 293.6703204 | AB15: ='Calcul CB'!$C$17+$C15*COS(ACOS(($C15*$C15+$AE$2-$AB$2)/(2*$C15*SQRT($AE$2)))-ATAN(ABS($AD$2)/$AC$2)) -> 385.0658976 | AC15: ='Calcul CB'!$D$17+$C15*SIN(ACOS(($C15*$C15+$AE$2-$AB$2)/(2*$C15*SQRT($AE$2)))-ATAN(ABS($AD$2)/$AC$2)) -> 886.540659 | AD15: ='Calcul CB'!$C$17+($C15+$D15*0.5)*COS(ACOS((($C15+$D15*0.5)*($C15+$D15*0.5)+$AE$2-$AB$2)/(2*($C15+$D15*0.5)*SQRT($AE$2)))-ATAN(ABS($AD$2)/$AC$2)) -> 515.9481437 | AE15: ='Calcul CB'!$D$17+($C15+$D15*0.5)*SIN(ACOS((($C15+$D15*0.5)*($C15+$D15*0.5)+$AE$2-$AB$2)/(2*($C15+$D15*0.5)*SQRT($AE$2)))-ATAN(ABS($AD$2)/$AC$2)) -> 956.9746422 | AF15: ='Calcul CB'!$C$17+($C15+$D15)*COS(ACOS((($C15+$D15)*($C15+$D15)+$AE$2-$AB$2)/(2*($C15+$D15)*SQRT($AE$2)))-ATAN(ABS($AD$2)/$AC$2)) -> 664.6750052 | AG15: ='Calcul CB'!$D$17+($C15+$D15)*SIN(ACOS((($C15+$D15)*($C15+$D15)+$AE$2-$AB$2)/(2*($C15+$D15)*SQRT($AE$2)))-ATAN(ABS($AD$2)/$AC$2)) -> 995.5205229
A16: Vérin sans flexible, R/R, cat.2, l0=550mm, c=250mm | B16: 2 | C16: 550 | D16: 250 | E16: TEVNN356025022 | G16: ='Calcul CB'!$E$23-('Choix vérin lumi'!$C16+0.5*'Choix vérin lumi'!$D16) -> -185.6892603 | H16: =ABS(G16) -> 185.6892603 | I16: ='Calcul CB'!$E$24-('Choix vérin lumi'!$C16+0.5*'Choix vérin lumi'!$D16) -> -252.4851781 | J16: =ABS(I16) -> 252.4851781 | K16: ='Calcul CB'!$E$25-('Choix vérin lumi'!$C16+0.5*'Choix vérin lumi'!$D16) -> -5.107563673 | L16: =ABS(K16) -> 5.107563673 | N16: ='Calcul CB'!$C$17+$C16*COS(ACOS(($C16*$C16+$Q$2-$N$2)/(2*$C16*SQRT($Q$2)))-ATAN(ABS($P$2)/$O$2)) -> 849.6157655 | O16: ='Calcul CB'!$D$17+$C16*SIN(ACOS(($C16*$C16+$Q$2-$N$2)/(2*$C16*SQRT($Q$2)))-ATAN(ABS($P$2)/$O$2)) -> 630.2760557 | P16: ='Calcul CB'!$C$17+($C16+$D16*0.5)*COS(ACOS((($C16+$D16*0.5)*($C16+$D16*0.5)+$Q$2-$N$2)/(2*($C16+$D16*0.5)*SQRT($Q$2)))-ATAN(ABS($P$2)/$O$2)) -> 986.0729588 | Q16: ='Calcul CB'!$D$17+($C16+$D16*0.5)*SIN(ACOS((($C16+$D16*0.5)*($C16+$D16*0.5)+$Q$2-$N$2)/(2*($C16+$D16*0.5)*SQRT($Q$2)))-ATAN(ABS($P$2)/$O$2)) -> 608.7238884 | R16: ='Calcul CB'!$C$17+($C16+$D16)*COS(ACOS((($C16+$D16)*($C16+$D16)+$Q$2-$N$2)/(2*($C16+$D16)*SQRT($Q$2)))-ATAN(ABS($P$2)/$O$2)) -> 1123.303723 | S16: ='Calcul CB'!$D$17+($C16+$D16)*SIN(ACOS((($C16+$D16)*($C16+$D16)+$Q$2-$N$2)/(2*($C16+$D16)*SQRT($Q$2)))-ATAN(ABS($P$2)/$O$2)) -> 553.2918321 | T16: =(H16+J16+L16)/3 -> 147.7606673 | U16: ='Calcul CB'!$C$17+$C16*COS(ACOS(($C16*$C16+$X$2-$U$2)/(2*$C16*SQRT($X$2)))-ATAN(ABS($W$2)/$V$2)) -> 862.8319312 | V16: ='Calcul CB'!$D$17+$C16*SIN(ACOS(($C16*$C16+$X$2-$U$2)/(2*$C16*SQRT($X$2)))-ATAN(ABS($W$2)/$V$2)) -> 313.6543615 | W16: ='Calcul CB'!$C$17+($C16+$D16*0.5)*COS(ACOS((($C16+$D16*0.5)*($C16+$D16*0.5)+$X$2-$U$2)/(2*($C16+$D16*0.5)*SQRT($X$2)))-ATAN(ABS($W$2)/$V$2)) -> 983.8946408 | X16: ='Calcul CB'!$D$17+($C16+$D16*0.5)*SIN(ACOS((($C16+$D16*0.5)*($C16+$D16*0.5)+$X$2-$U$2)/(2*($C16+$D16*0.5)*SQRT($X$2)))-ATAN(ABS($W$2)/$V$2)) -> 282.5282152 | Y16: ='Calcul CB'!$C$17+($C16+$D16)*COS(ACOS((($C16+$D16)*($C16+$D16)+$X$2-$U$2)/(2*($C16+$D16)*SQRT($X$2)))-ATAN(ABS($W$2)/$V$2)) -> 1098.294278 | Z16: ='Calcul CB'!$D$17+($C16+$D16)*SIN(ACOS((($C16+$D16)*($C16+$D16)+$X$2-$U$2)/(2*($C16+$D16)*SQRT($X$2)))-ATAN(ABS($W$2)/$V$2)) -> 227.0114307 | AB16: ='Calcul CB'!$C$17+$C16*COS(ACOS(($C16*$C16+$AE$2-$AB$2)/(2*$C16*SQRT($AE$2)))-ATAN(ABS($AD$2)/$AC$2)) -> 530.0314422 | AC16: ='Calcul CB'!$D$17+$C16*SIN(ACOS(($C16*$C16+$AE$2-$AB$2)/(2*$C16*SQRT($AE$2)))-ATAN(ABS($AD$2)/$AC$2)) -> 962.3352634 | AD16: ='Calcul CB'!$C$17+($C16+$D16*0.5)*COS(ACOS((($C16+$D16*0.5)*($C16+$D16*0.5)+$AE$2-$AB$2)/(2*($C16+$D16*0.5)*SQRT($AE$2)))-ATAN(ABS($AD$2)/$AC$2)) -> 720.7398531 | AE16: ='Calcul CB'!$D$17+($C16+$D16*0.5)*SIN(ACOS((($C16+$D16*0.5)*($C16+$D16*0.5)+$AE$2-$AB$2)/(2*($C16+$D16*0.5)*SQRT($AE$2)))-ATAN(ABS($AD$2)/$AC$2)) -> 1000.406547 | AF16: ='Calcul CB'!$C$17+($C16+$D16)*COS(ACOS((($C16+$D16)*($C16+$D16)+$AE$2-$AB$2)/(2*($C16+$D16)*SQRT($AE$2)))-ATAN(ABS($AD$2)/$AC$2)) -> 936.1557768 | AG16: ='Calcul CB'!$D$17+($C16+$D16)*SIN(ACOS((($C16+$D16)*($C16+$D16)+$AE$2-$AB$2)/(2*($C16+$D16)*SQRT($AE$2)))-ATAN(ABS($AD$2)/$AC$2)) -> 972.0873244
A17: Vérin nu, R/R, cat.2, l0=580mm, c=300mm | B17: 2 | C17: 580 | D17: 300 | E17: TENNN356030022 | G17: ='Calcul CB'!$E$23-('Choix vérin lumi'!$C17+0.5*'Choix vérin lumi'!$D17) -> -240.6892603 | H17: =ABS(G17) -> 240.6892603 | I17: ='Calcul CB'!$E$24-('Choix vérin lumi'!$C17+0.5*'Choix vérin lumi'!$D17) -> -307.4851781 | J17: =ABS(I17) -> 307.4851781 | K17: ='Calcul CB'!$E$25-('Choix vérin lumi'!$C17+0.5*'Choix vérin lumi'!$D17) -> -60.10756367 | L17: =ABS(K17) -> 60.10756367 | N17: ='Calcul CB'!$C$17+$C17*COS(ACOS(($C17*$C17+$Q$2-$N$2)/(2*$C17*SQRT($Q$2)))-ATAN(ABS($P$2)/$O$2)) -> 882.0385347 | O17: ='Calcul CB'!$D$17+$C17*SIN(ACOS(($C17*$C17+$Q$2-$N$2)/(2*$C17*SQRT($Q$2)))-ATAN(ABS($P$2)/$O$2)) -> 627.9141822 | P17: ='Calcul CB'!$C$17+($C17+$D17*0.5)*COS(ACOS((($C17+$D17*0.5)*($C17+$D17*0.5)+$Q$2-$N$2)/(2*($C17+$D17*0.5)*SQRT($Q$2)))-ATAN(ABS($P$2)/$O$2)) -> 1046.673363 | Q17: ='Calcul CB'!$D$17+($C17+$D17*0.5)*SIN(ACOS((($C17+$D17*0.5)*($C17+$D17*0.5)+$Q$2-$N$2)/(2*($C17+$D17*0.5)*SQRT($Q$2)))-ATAN(ABS($P$2)/$O$2)) -> 588.8498844 | R17: ='Calcul CB'!$C$17+($C17+$D17)*COS(ACOS((($C17+$D17)*($C17+$D17)+$Q$2-$N$2)/(2*($C17+$D17)*SQRT($Q$2)))-ATAN(ABS($P$2)/$O$2)) -> 1208.744321 | S17: ='Calcul CB'!$D$17+($C17+$D17)*SIN(ACOS((($C17+$D17)*($C17+$D17)+$Q$2-$N$2)/(2*($C17+$D17)*SQRT($Q$2)))-ATAN(ABS($P$2)/$O$2)) -> 496.9938159 | T17: =(H17+J17+L17)/3 -> 202.7606673 | U17: ='Calcul CB'!$C$17+$C17*COS(ACOS(($C17*$C17+$X$2-$U$2)/(2*$C17*SQRT($X$2)))-ATAN(ABS($W$2)/$V$2)) -> 892.4443622 | V17: ='Calcul CB'!$D$17+$C17*SIN(ACOS(($C17*$C17+$X$2-$U$2)/(2*$C17*SQRT($X$2)))-ATAN(ABS($W$2)/$V$2)) -> 308.3795938 | W17: ='Calcul CB'!$C$17+($C17+$D17*0.5)*COS(ACOS((($C17+$D17*0.5)*($C17+$D17*0.5)+$X$2-$U$2)/(2*($C17+$D17*0.5)*SQRT($X$2)))-ATAN(ABS($W$2)/$V$2)) -> 1035.153239 | X17: ='Calcul CB'!$D$17+($C17+$D17*0.5)*SIN(ACOS((($C17+$D17*0.5)*($C17+$D17*0.5)+$X$2-$U$2)/(2*($C17+$D17*0.5)*SQRT($X$2)))-ATAN(ABS($W$2)/$V$2)) -> 261.1643329 | Y17: ='Calcul CB'!$C$17+($C17+$D17)*COS(ACOS((($C17+$D17)*($C17+$D17)+$X$2-$U$2)/(2*($C17+$D17)*SQRT($X$2)))-ATAN(ABS($W$2)/$V$2)) -> 1166.926689 | Z17: ='Calcul CB'!$D$17+($C17+$D17)*SIN(ACOS((($C17+$D17)*($C17+$D17)+$X$2-$U$2)/(2*($C17+$D17)*SQRT($X$2)))-ATAN(ABS($W$2)/$V$2)) -> 178.055674 | AB17: ='Calcul CB'!$C$17+$C17*COS(ACOS(($C17*$C17+$AE$2-$AB$2)/(2*$C17*SQRT($AE$2)))-ATAN(ABS($AD$2)/$AC$2)) -> 573.3475845 | AC17: ='Calcul CB'!$D$17+$C17*SIN(ACOS(($C17*$C17+$AE$2-$AB$2)/(2*$C17*SQRT($AE$2)))-ATAN(ABS($AD$2)/$AC$2)) -> 976.4807244 | AD17: ='Calcul CB'!$C$17+($C17+$D17*0.5)*COS(ACOS((($C17+$D17*0.5)*($C17+$D17*0.5)+$AE$2-$AB$2)/(2*($C17+$D17*0.5)*SQRT($AE$2)))-ATAN(ABS($AD$2)/$AC$2)) -> 812.7578407 | AE17: ='Calcul CB'!$D$17+($C17+$D17*0.5)*SIN(ACOS((($C17+$D17*0.5)*($C17+$D17*0.5)+$AE$2-$AB$2)/(2*($C17+$D17*0.5)*SQRT($AE$2)))-ATAN(ABS($AD$2)/$AC$2)) -> 997.580923 | AF17: ='Calcul CB'!$C$17+($C17+$D17)*COS(ACOS((($C17+$D17)*($C17+$D17)+$AE$2-$AB$2)/(2*($C17+$D17)*SQRT($AE$2)))-ATAN(ABS($AD$2)/$AC$2)) -> 1084.031507 | AG17: ='Calcul CB'!$D$17+($C17+$D17)*SIN(ACOS((($C17+$D17)*($C17+$D17)+$AE$2-$AB$2)/(2*($C17+$D17)*SQRT($AE$2)))-ATAN(ABS($AD$2)/$AC$2)) -> 903.692062
A18: Vérin sans flexible, R/C, cat.1, l0=490mm, c=200mm | B18: 1 | C18: 490 | D18: 200 | E18: TCVNN305020011 | G18: ='Calcul CB'!$E$23-('Choix vérin lumi'!$C18+0.5*'Choix vérin lumi'!$D18) -> -100.6892603 | H18: =ABS(G18) -> 100.6892603 | I18: ='Calcul CB'!$E$24-('Choix vérin lumi'!$C18+0.5*'Choix vérin lumi'!$D18) -> -167.4851781 | J18: =ABS(I18) -> 167.4851781 | K18: ='Calcul CB'!$E$25-('Choix vérin lumi'!$C18+0.5*'Choix vérin lumi'!$D18) -> 79.89243633 | L18: =ABS(K18) -> 79.89243633 | N18: ='Calcul CB'!$C$17+$C18*COS(ACOS(($C18*$C18+$Q$2-$N$2)/(2*$C18*SQRT($Q$2)))-ATAN(ABS($P$2)/$O$2)) -> 785.7254011 | O18: ='Calcul CB'!$D$17+$C18*SIN(ACOS(($C18*$C18+$Q$2-$N$2)/(2*$C18*SQRT($Q$2)))-ATAN(ABS($P$2)/$O$2)) -> 630.0398812 | P18: ='Calcul CB'!$C$17+($C18+$D18*0.5)*COS(ACOS((($C18+$D18*0.5)*($C18+$D18*0.5)+$Q$2-$N$2)/(2*($C18+$D18*0.5)*SQRT($Q$2)))-ATAN(ABS($P$2)/$O$2)) -> 892.9040839 | Q18: ='Calcul CB'!$D$17+($C18+$D18*0.5)*SIN(ACOS((($C18+$D18*0.5)*($C18+$D18*0.5)+$Q$2-$N$2)/(2*($C18+$D18*0.5)*SQRT($Q$2)))-ATAN(ABS($P$2)/$O$2)) -> 626.7455581 | R18: ='Calcul CB'!$C$17+($C18+$D18)*COS(ACOS((($C18+$D18)*($C18+$D18)+$Q$2-$N$2)/(2*($C18+$D18)*SQRT($Q$2)))-ATAN(ABS($P$2)/$O$2)) -> 1002.601475 | S18: ='Calcul CB'!$D$17+($C18+$D18)*SIN(ACOS((($C18+$D18)*($C18+$D18)+$Q$2-$N$2)/(2*($C18+$D18)*SQRT($Q$2)))-ATAN(ABS($P$2)/$O$2)) -> 603.9716063 | T18: =(H18+J18+L18)/3 -> 116.0222916 | U18: ='Calcul CB'!$C$17+$C18*COS(ACOS(($C18*$C18+$X$2-$U$2)/(2*$C18*SQRT($X$2)))-ATAN(ABS($W$2)/$V$2)) -> 802.4340791 | V18: ='Calcul CB'!$D$17+$C18*SIN(ACOS(($C18*$C18+$X$2-$U$2)/(2*$C18*SQRT($X$2)))-ATAN(ABS($W$2)/$V$2)) -> 319.9767678 | W18: ='Calcul CB'!$C$17+($C18+$D18*0.5)*COS(ACOS((($C18+$D18*0.5)*($C18+$D18*0.5)+$X$2-$U$2)/(2*($C18+$D18*0.5)*SQRT($X$2)))-ATAN(ABS($W$2)/$V$2)) -> 902.2359049 | X18: ='Calcul CB'!$D$17+($C18+$D18*0.5)*SIN(ACOS((($C18+$D18*0.5)*($C18+$D18*0.5)+$X$2-$U$2)/(2*($C18+$D18*0.5)*SQRT($X$2)))-ATAN(ABS($W$2)/$V$2)) -> 306.3125992 | Y18: ='Calcul CB'!$C$17+($C18+$D18)*COS(ACOS((($C18+$D18)*($C18+$D18)+$X$2-$U$2)/(2*($C18+$D18)*SQRT($X$2)))-ATAN(ABS($W$2)/$V$2)) -> 998.0047102 | Z18: ='Calcul CB'!$D$17+($C18+$D18)*SIN(ACOS((($C18+$D18)*($C18+$D18)+$X$2-$U$2)/(2*($C18+$D18)*SQRT($X$2)))-ATAN(ABS($W$2)/$V$2)) -> 277.1714515 | AB18: ='Calcul CB'!$C$17+$C18*COS(ACOS(($C18*$C18+$AE$2-$AB$2)/(2*$C18*SQRT($AE$2)))-ATAN(ABS($AD$2)/$AC$2)) -> 448.2338775 | AC18: ='Calcul CB'!$D$17+$C18*SIN(ACOS(($C18*$C18+$AE$2-$AB$2)/(2*$C18*SQRT($AE$2)))-ATAN(ABS($AD$2)/$AC$2)) -> 925.521556 | AD18: ='Calcul CB'!$C$17+($C18+$D18*0.5)*COS(ACOS((($C18+$D18*0.5)*($C18+$D18*0.5)+$AE$2-$AB$2)/(2*($C18+$D18*0.5)*SQRT($AE$2)))-ATAN(ABS($AD$2)/$AC$2)) -> 588.1382642 | AE18: ='Calcul CB'!$D$17+($C18+$D18*0.5)*SIN(ACOS((($C18+$D18*0.5)*($C18+$D18*0.5)+$AE$2-$AB$2)/(2*($C18+$D18*0.5)*SQRT($AE$2)))-ATAN(ABS($AD$2)/$AC$2)) -> 980.5324086 | AF18: ='Calcul CB'!$C$17+($C18+$D18)*COS(ACOS((($C18+$D18)*($C18+$D18)+$AE$2-$AB$2)/(2*($C18+$D18)*SQRT($AE$2)))-ATAN(ABS($AD$2)/$AC$2)) -> 745.3723004 | AG18: ='Calcul CB'!$D$17+($C18+$D18)*SIN(ACOS((($C18+$D18)*($C18+$D18)+$AE$2-$AB$2)/(2*($C18+$D18)*SQRT($AE$2)))-ATAN(ABS($AD$2)/$AC$2)) -> 1000.968104
A19: Vérin nu, R/R, cat2, l0 = 480mm, c=160mm | B19: 2 | C19: 480 | D19: 160 | E19: TEVNN305016022 | G19: ='Calcul CB'!$E$23-('Choix vérin lumi'!$C19+0.5*'Choix vérin lumi'!$D19) -> -70.68926029 | H19: =ABS(G19) -> 70.68926029 | I19: ='Calcul CB'!$E$24-('Choix vérin lumi'!$C19+0.5*'Choix vérin lumi'!$D19) -> -137.4851781 | J19: =ABS(I19) -> 137.4851781 | K19: ='Calcul CB'!$E$25-('Choix vérin lumi'!$C19+0.5*'Choix vérin lumi'!$D19) -> 109.8924363 | L19: =ABS(K19) -> 109.8924363 | N19: ='Calcul CB'!$C$17+$C19*COS(ACOS(($C19*$C19+$Q$2-$N$2)/(2*$C19*SQRT($Q$2)))-ATAN(ABS($P$2)/$O$2)) -> 775.2219712 | O19: ='Calcul CB'!$D$17+$C19*SIN(ACOS(($C19*$C19+$Q$2-$N$2)/(2*$C19*SQRT($Q$2)))-ATAN(ABS($P$2)/$O$2)) -> 629.3805908 | P19: ='Calcul CB'!$C$17+($C19+$D19*0.5)*COS(ACOS((($C19+$D19*0.5)*($C19+$D19*0.5)+$Q$2-$N$2)/(2*($C19+$D19*0.5)*SQRT($Q$2)))-ATAN(ABS($P$2)/$O$2)) -> 860.3923842 | Q19: ='Calcul CB'!$D$17+($C19+$D19*0.5)*SIN(ACOS((($C19+$D19*0.5)*($C19+$D19*0.5)+$Q$2-$N$2)/(2*($C19+$D19*0.5)*SQRT($Q$2)))-ATAN(ABS($P$2)/$O$2)) -> 629.6772628 | R19: ='Calcul CB'!$C$17+($C19+$D19)*COS(ACOS((($C19+$D19)*($C19+$D19)+$Q$2-$N$2)/(2*($C19+$D19)*SQRT($Q$2)))-ATAN(ABS($P$2)/$O$2)) -> 947.5727155 | S19: ='Calcul CB'!$D$17+($C19+$D19)*SIN(ACOS((($C19+$D19)*($C19+$D19)+$Q$2-$N$2)/(2*($C19+$D19)*SQRT($Q$2)))-ATAN(ABS($P$2)/$O$2)) -> 617.9402902 | T19: =(H19+J19+L19)/3 -> 106.0222916 | U19: ='Calcul CB'!$C$17+$C19*COS(ACOS(($C19*$C19+$X$2-$U$2)/(2*$C19*SQRT($X$2)))-ATAN(ABS($W$2)/$V$2)) -> 792.1923227 | V19: ='Calcul CB'!$D$17+$C19*SIN(ACOS(($C19*$C19+$X$2-$U$2)/(2*$C19*SQRT($X$2)))-ATAN(ABS($W$2)/$V$2)) -> 320.4690892 | W19: ='Calcul CB'!$C$17+($C19+$D19*0.5)*COS(ACOS((($C19+$D19*0.5)*($C19+$D19*0.5)+$X$2-$U$2)/(2*($C19+$D19*0.5)*SQRT($X$2)))-ATAN(ABS($W$2)/$V$2)) -> 872.7430686 | X19: ='Calcul CB'!$D$17+($C19+$D19*0.5)*SIN(ACOS((($C19+$D19*0.5)*($C19+$D19*0.5)+$X$2-$U$2)/(2*($C19+$D19*0.5)*SQRT($X$2)))-ATAN(ABS($W$2)/$V$2)) -> 312.0508736 | Y19: ='Calcul CB'!$C$17+($C19+$D19)*COS(ACOS((($C19+$D19)*($C19+$D19)+$X$2-$U$2)/(2*($C19+$D19)*SQRT($X$2)))-ATAN(ABS($W$2)/$V$2)) -> 950.6134314 | Z19: ='Calcul CB'!$D$17+($C19+$D19)*SIN(ACOS((($C19+$D19)*($C19+$D19)+$X$2-$U$2)/(2*($C19+$D19)*SQRT($X$2)))-ATAN(ABS($W$2)/$V$2)) -> 293.6703204 | AB19: ='Calcul CB'!$C$17+$C19*COS(ACOS(($C19*$C19+$AE$2-$AB$2)/(2*$C19*SQRT($AE$2)))-ATAN(ABS($AD$2)/$AC$2)) -> 435.2355037 | AC19: ='Calcul CB'!$D$17+$C19*SIN(ACOS(($C19*$C19+$AE$2-$AB$2)/(2*$C19*SQRT($AE$2)))-ATAN(ABS($AD$2)/$AC$2)) -> 918.3219926 | AD19: ='Calcul CB'!$C$17+($C19+$D19*0.5)*COS(ACOS((($C19+$D19*0.5)*($C19+$D19*0.5)+$AE$2-$AB$2)/(2*($C19+$D19*0.5)*SQRT($AE$2)))-ATAN(ABS($AD$2)/$AC$2)) -> 544.2930953 | AE19: ='Calcul CB'!$D$17+($C19+$D19*0.5)*SIN(ACOS((($C19+$D19*0.5)*($C19+$D19*0.5)+$AE$2-$AB$2)/(2*($C19+$D19*0.5)*SQRT($AE$2)))-ATAN(ABS($AD$2)/$AC$2)) -> 967.3765257 | AF19: ='Calcul CB'!$C$17+($C19+$D19)*COS(ACOS((($C19+$D19)*($C19+$D19)+$AE$2-$AB$2)/(2*($C19+$D19)*SQRT($AE$2)))-ATAN(ABS($AD$2)/$AC$2)) -> 664.6750052 | AG19: ='Calcul CB'!$D$17+($C19+$D19)*SIN(ACOS((($C19+$D19)*($C19+$D19)+$AE$2-$AB$2)/(2*($C19+$D19)*SQRT($AE$2)))-ATAN(ABS($AD$2)/$AC$2)) -> 995.5205229
A20: Vérin équipé, R/C, cat2, l0=620mm, c=300mm | B20: 2 | C20: 620 | D20: 300 | E20: TCVHN356330022 | G20: ='Calcul CB'!$E$23-('Choix vérin lumi'!$C20+0.5*'Choix vérin lumi'!$D20) -> -280.6892603 | H20: =ABS(G20) -> 280.6892603 | I20: ='Calcul CB'!$E$24-('Choix vérin lumi'!$C20+0.5*'Choix vérin lumi'!$D20) -> -347.4851781 | J20: =ABS(I20) -> 347.4851781 | K20: ='Calcul CB'!$E$25-('Choix vérin lumi'!$C20+0.5*'Choix vérin lumi'!$D20) -> -100.1075637 | L20: =ABS(K20) -> 100.1075637 | N20: ='Calcul CB'!$C$17+$C20*COS(ACOS(($C20*$C20+$Q$2-$N$2)/(2*$C20*SQRT($Q$2)))-ATAN(ABS($P$2)/$O$2)) -> 925.6457695 | O20: ='Calcul CB'!$D$17+$C20*SIN(ACOS(($C20*$C20+$Q$2-$N$2)/(2*$C20*SQRT($Q$2)))-ATAN(ABS($P$2)/$O$2)) -> 622.0642824 | P20: ='Calcul CB'!$C$17+($C20+$D20*0.5)*COS(ACOS((($C20+$D20*0.5)*($C20+$D20*0.5)+$Q$2-$N$2)/(2*($C20+$D20*0.5)*SQRT($Q$2)))-ATAN(ABS($P$2)/$O$2)) -> 1090.591121 | Q20: ='Calcul CB'!$D$17+($C20+$D20*0.5)*SIN(ACOS((($C20+$D20*0.5)*($C20+$D20*0.5)+$Q$2-$N$2)/(2*($C20+$D20*0.5)*SQRT($Q$2)))-ATAN(ABS($P$2)/$O$2)) -> 570.0047764 | R20: ='Calcul CB'!$C$17+($C20+$D20)*COS(ACOS((($C20+$D20)*($C20+$D20)+$Q$2-$N$2)/(2*($C20+$D20)*SQRT($Q$2)))-ATAN(ABS($P$2)/$O$2)) -> 1249.923889 | S20: ='Calcul CB'!$D$17+($C20+$D20)*SIN(ACOS((($C20+$D20)*($C20+$D20)+$Q$2-$N$2)/(2*($C20+$D20)*SQRT($Q$2)))-ATAN(ABS($P$2)/$O$2)) -> 461.8337902 | T20: =(H20+J20+L20)/3 -> 242.7606673 | U20: ='Calcul CB'!$C$17+$C20*COS(ACOS(($C20*$C20+$X$2-$U$2)/(2*$C20*SQRT($X$2)))-ATAN(ABS($W$2)/$V$2)) -> 931.3783608 | V20: ='Calcul CB'!$D$17+$C20*SIN(ACOS(($C20*$C20+$X$2-$U$2)/(2*$C20*SQRT($X$2)))-ATAN(ABS($W$2)/$V$2)) -> 299.188637 | W20: ='Calcul CB'!$C$17+($C20+$D20*0.5)*COS(ACOS((($C20+$D20*0.5)*($C20+$D20*0.5)+$X$2-$U$2)/(2*($C20+$D20*0.5)*SQRT($X$2)))-ATAN(ABS($W$2)/$V$2)) -> 1071.547585 | X20: ='Calcul CB'!$D$17+($C20+$D20*0.5)*SIN(ACOS((($C20+$D20*0.5)*($C20+$D20*0.5)+$X$2-$U$2)/(2*($C20+$D20*0.5)*SQRT($X$2)))-ATAN(ABS($W$2)/$V$2)) -> 242.6182776 | Y20: ='Calcul CB'!$C$17+($C20+$D20)*COS(ACOS((($C20+$D20)*($C20+$D20)+$X$2-$U$2)/(2*($C20+$D20)*SQRT($X$2)))-ATAN(ABS($W$2)/$V$2)) -> 1199.514374 | Z20: ='Calcul CB'!$D$17+($C20+$D20)*SIN(ACOS((($C20+$D20)*($C20+$D20)+$X$2-$U$2)/(2*($C20+$D20)*SQRT($X$2)))-ATAN(ABS($W$2)/$V$2)) -> 149.4259593 | AB20: ='Calcul CB'!$C$17+$C20*COS(ACOS(($C20*$C20+$AE$2-$AB$2)/(2*$C20*SQRT($AE$2)))-ATAN(ABS($AD$2)/$AC$2)) -> 633.5492794 | AC20: ='Calcul CB'!$D$17+$C20*SIN(ACOS(($C20*$C20+$AE$2-$AB$2)/(2*$C20*SQRT($AE$2)))-ATAN(ABS($AD$2)/$AC$2)) -> 990.6087633 | AD20: ='Calcul CB'!$C$17+($C20+$D20*0.5)*COS(ACOS((($C20+$D20*0.5)*($C20+$D20*0.5)+$AE$2-$AB$2)/(2*($C20+$D20*0.5)*SQRT($AE$2)))-ATAN(ABS($AD$2)/$AC$2)) -> 882.4734138 | AE20: ='Calcul CB'!$D$17+($C20+$D20*0.5)*SIN(ACOS((($C20+$D20*0.5)*($C20+$D20*0.5)+$AE$2-$AB$2)/(2*($C20+$D20*0.5)*SQRT($AE$2)))-ATAN(ABS($AD$2)/$AC$2)) -> 986.3516823 | AF20: ='Calcul CB'!$C$17+($C20+$D20)*COS(ACOS((($C20+$D20)*($C20+$D20)+$AE$2-$AB$2)/(2*($C20+$D20)*SQRT($AE$2)))-ATAN(ABS($AD$2)/$AC$2)) -> 1159.558274 | AG20: ='Calcul CB'!$D$17+($C20+$D20)*SIN(ACOS((($C20+$D20)*($C20+$D20)+$AE$2-$AB$2)/(2*($C20+$D20)*SQRT($AE$2)))-ATAN(ABS($AD$2)/$AC$2)) -> 847.7852066
B22: Bras de relevage horizontaux | P22: Bras de relevage bas | Z22: Bras de relevage haut
A24: Vérin rentré
A49: Vérin mi-course
A74: Vérin sorti

Sheet Choix vérin basc
A1: Les vérins sont soit : | B1: !!!! NE SURTOUT PAS AJOUTER DE LIGNES EN AMONT DES BOUTONS !!! | N1: ||AB||² | O1: Xca | P1: Yca | Q1: ||CA||² | U1: ||A'B||² | V1: Xca' | W1: Yca' | X1: ||CA'||² | AB1: ||A''B||² | AC1: Xca'' | AD1: Yca'' | AE1: ||CA''||²
A2: - équipés : flexibles et clapet anti-retour inclus | N2: =('Calcul CB'!$H$15*'Calcul CB'!$H$15+'Calcul CB'!$I$15*'Calcul CB'!$I$15) -> 600625.4225 | O2: ='Calcul CB'!H18-'Calcul CB'!$H$17 -> 490 | P2: ='Calcul CB'!I18-'Calcul CB'!$I$17 -> -450 | Q2: =(O2*O2+P2*P2) -> 442600 | U2: =('Calcul CB'!$H$15*'Calcul CB'!$H$15+'Calcul CB'!$I$15*'Calcul CB'!$I$15) -> 600625.4225 | V2: ='Calcul CB'!H19-'Calcul CB'!$H$17 -> 437.0183761 | W2: ='Calcul CB'!I19-'Calcul CB'!$I$17 -> -760 | X2: =(V2*V2+W2*W2) -> 768585.0611 | AB2: =('Calcul CB'!$H$15*'Calcul CB'!$H$15+'Calcul CB'!$I$15*'Calcul CB'!$I$15) -> 600625.4225 | AC2: ='Calcul CB'!H20-'Calcul CB'!$H$17 -> 417.4341463 | AD2: ='Calcul CB'!I20-'Calcul CB'!$I$17 -> -80 | AE2: =(AC2*AC2+AD2*AD2) -> 180651.2665
A3: - sans flexibles : clapet anti-retour inclus, flexibles (ref: TOP9H0900) à commander en plus
A4: - nu : flexibles (ref: TOP9H0900) ET clapet (ref: TOP912063A) à commander en plus | N4: Horizontale (coordonnées point B) | U4: bas | AB4: haut
G5: Lumière (CB - ( lo +0,5c) ) | M5: Générer dessins : | N5: rentré | P5: mi-course | R5: sorti | U5: rentré | W5: mi-course | Y5: sorti | AB5: rentré | AD5: mi-course | AF5: sorti
A6: Désignation AP | B6: catégorie | C6: lo | D6: c | E6: ref | G6: horizontale | I6: bas | K6: haut | N6: X | O6: Y | P6: X | Q6: Y | R6: X | S6: Y | T6: Moyenne | U6: X | V6: Y | W6: X | X6: Y | Y6: X | Z6: Y | AB6: X | AC6: Y | AD6: X | AE6: Y | AF6: X | AG6: Y
A7: Vérin équipé, R/C, cat2, l0=620mm, c=300mm | B7: 2 | C7: 620 | D7: 300 | E7: TCVHN356330022 | G7: ='Calcul CB'!$J$23-('Choix vérin basc'!$C7+0.5*'Choix vérin basc'!$D7) -> -182.5577284 | H7: =ABS(G7) -> 182.5577284 | I7: ='Calcul CB'!$J$24-('Choix vérin basc'!$C7+0.5*'Choix vérin basc'!$D7) -> -333.3738903 | J7: =ABS(I7) -> 333.3738903 | K7: ='Calcul CB'!$J$25-('Choix vérin basc'!$C7+0.5*'Choix vérin basc'!$D7) -> 40.3912787 | L7: =ABS(K7) -> 40.3912787 | N7: ='Calcul CB'!$C$17+$C7*COS(ACOS(($C7*$C7+$Q$2-$N$2)/(2*$C7*SQRT($Q$2)))-ATAN(ABS($P$2)/$O$2)) -> 858.5816054 | O7: ='Calcul CB'!$D$17+$C7*SIN(ACOS(($C7*$C7+$Q$2-$N$2)/(2*$C7*SQRT($Q$2)))-ATAN(ABS($P$2)/$O$2)) -> 774.0393286 | P7: ='Calcul CB'!$C$17+($C7+$D7*0.5)*COS(ACOS((($C7+$D7*0.5)*($C7+$D7*0.5)+$Q$2-$N$2)/(2*($C7+$D7*0.5)*SQRT($Q$2)))-ATAN(ABS($P$2)/$O$2)) -> 1042.308891 | Q7: ='Calcul CB'!$D$17+($C7+$D7*0.5)*SIN(ACOS((($C7+$D7*0.5)*($C7+$D7*0.5)+$Q$2-$N$2)/(2*($C7+$D7*0.5)*SQRT($Q$2)))-ATAN(ABS($P$2)/$O$2)) -> 742.4312623 | R7: ='Calcul CB'!$C$17+($C7+$D7)*COS(ACOS((($C7+$D7)*($C7+$D7)+$Q$2-$N$2)/(2*($C7+$D7)*SQRT($Q$2)))-ATAN(ABS($P$2)/$O$2)) -> 1225.62412 | S7: ='Calcul CB'!$D$17+($C7+$D7)*SIN(ACOS((($C7+$D7)*($C7+$D7)+$Q$2-$N$2)/(2*($C7+$D7)*SQRT($Q$2)))-ATAN(ABS($P$2)/$O$2)) -> 660.3745116 | T7: =(H7+J7+L7)/3 -> 185.4409658 | U7: ='Calcul CB'!$C$17+$C7*COS(ACOS(($C7*$C7+$X$2-$U$2)/(2*$C7*SQRT($X$2)))-ATAN(ABS($W$2)/$V$2)) -> 949.9615859 | V7: ='Calcul CB'!$D$17+$C7*SIN(ACOS(($C7*$C7+$X$2-$U$2)/(2*$C7*SQRT($X$2)))-ATAN(ABS($W$2)/$V$2)) -> 443.0984029 | W7: ='Calcul CB'!$C$17+($C7+$D7*0.5)*COS(ACOS((($C7+$D7*0.5)*($C7+$D7*0.5)+$X$2-$U$2)/(2*($C7+$D7*0.5)*SQRT($X$2)))-ATAN(ABS($W$2)/$V$2)) -> 1097.728346 | X7: ='Calcul CB'!$D$17+($C7+$D7*0.5)*SIN(ACOS((($C7+$D7*0.5)*($C7+$D7*0.5)+$X$2-$U$2)/(2*($C7+$D7*0.5)*SQRT($X$2)))-ATAN(ABS($W$2)/$V$2)) -> 390.8968101 | Y7: ='Calcul CB'!$C$17+($C7+$D7)*COS(ACOS((($C7+$D7)*($C7+$D7)+$X$2-$U$2)/(2*($C7+$D7)*SQRT($X$2)))-ATAN(ABS($W$2)/$V$2)) -> 1238.513542 | Z7: ='Calcul CB'!$D$17+($C7+$D7)*SIN(ACOS((($C7+$D7)*($C7+$D7)+$X$2-$U$2)/(2*($C7+$D7)*SQRT($X$2)))-ATAN(ABS($W$2)/$V$2)) -> 305.0753863 | AB7: ='Calcul CB'!$C$17+$C7*COS(ACOS(($C7*$C7+$AE$2-$AB$2)/(2*$C7*SQRT($AE$2)))-ATAN(ABS($AD$2)/$AC$2)) -> 405.3303342 | AC7: ='Calcul CB'!$D$17+$C7*SIN(ACOS(($C7*$C7+$AE$2-$AB$2)/(2*$C7*SQRT($AE$2)))-ATAN(ABS($AD$2)/$AC$2)) -> 1065.406647 | AD7: ='Calcul CB'!$C$17+($C7+$D7*0.5)*COS(ACOS((($C7+$D7*0.5)*($C7+$D7*0.5)+$AE$2-$AB$2)/(2*($C7+$D7*0.5)*SQRT($AE$2)))-ATAN(ABS($AD$2)/$AC$2)) -> 669.5727291 | AE7: ='Calcul CB'!$D$17+($C7+$D7*0.5)*SIN(ACOS((($C7+$D7*0.5)*($C7+$D7*0.5)+$AE$2-$AB$2)/(2*($C7+$D7*0.5)*SQRT($AE$2)))-ATAN(ABS($AD$2)/$AC$2)) -> 1141.079128 | AF7: ='Calcul CB'!$C$17+($C7+$D7)*COS(ACOS((($C7+$D7)*($C7+$D7)+$AE$2-$AB$2)/(2*($C7+$D7)*SQRT($AE$2)))-ATAN(ABS($AD$2)/$AC$2)) -> 967.8322962 | AG7: ='Calcul CB'!$D$17+($C7+$D7)*SIN(ACOS((($C7+$D7)*($C7+$D7)+$AE$2-$AB$2)/(2*($C7+$D7)*SQRT($AE$2)))-ATAN(ABS($AD$2)/$AC$2)) -> 1113.000725
A8: Vérin sans flexible, R/R, cat2, l0=550mm, c=285mm | B8: 2 | C8: 550 | D8: 285 | E8: TEVNN305028522 | G8: ='Calcul CB'!$J$23-('Choix vérin basc'!$C8+0.5*'Choix vérin basc'!$D8) -> -105.0577284 | H8: =ABS(G8) -> 105.0577284 | I8: ='Calcul CB'!$J$24-('Choix vérin basc'!$C8+0.5*'Choix vérin basc'!$D8) -> -255.8738903 | J8: =ABS(I8) -> 255.8738903 | K8: ='Calcul CB'!$J$25-('Choix vérin basc'!$C8+0.5*'Choix vérin basc'!$D8) -> 117.8912787 | L8: =ABS(K8) -> 117.8912787 | N8: ='Calcul CB'!$C$17+$C8*COS(ACOS(($C8*$C8+$Q$2-$N$2)/(2*$C8*SQRT($Q$2)))-ATAN(ABS($P$2)/$O$2)) -> 774.6744067 | O8: ='Calcul CB'!$D$17+$C8*SIN(ACOS(($C8*$C8+$Q$2-$N$2)/(2*$C8*SQRT($Q$2)))-ATAN(ABS($P$2)/$O$2)) -> 773.6737123 | P8: ='Calcul CB'!$C$17+($C8+$D8*0.5)*COS(ACOS((($C8+$D8*0.5)*($C8+$D8*0.5)+$Q$2-$N$2)/(2*($C8+$D8*0.5)*SQRT($Q$2)))-ATAN(ABS($P$2)/$O$2)) -> 946.948754 | Q8: ='Calcul CB'!$D$17+($C8+$D8*0.5)*SIN(ACOS((($C8+$D8*0.5)*($C8+$D8*0.5)+$Q$2-$N$2)/(2*($C8+$D8*0.5)*SQRT($Q$2)))-ATAN(ABS($P$2)/$O$2)) -> 764.5321683 | R8: ='Calcul CB'!$C$17+($C8+$D8)*COS(ACOS((($C8+$D8)*($C8+$D8)+$Q$2-$N$2)/(2*($C8+$D8)*SQRT($Q$2)))-ATAN(ABS($P$2)/$O$2)) -> 1122.296434 | S8: ='Calcul CB'!$D$17+($C8+$D8)*SIN(ACOS((($C8+$D8)*($C8+$D8)+$Q$2-$N$2)/(2*($C8+$D8)*SQRT($Q$2)))-ATAN(ABS($P$2)/$O$2)) -> 713.6121416 | T8: =(H8+J8+L8)/3 -> 159.6076324 | U8: ='Calcul CB'!$C$17+$C8*COS(ACOS(($C8*$C8+$X$2-$U$2)/(2*$C8*SQRT($X$2)))-ATAN(ABS($W$2)/$V$2)) -> 879.9588632 | V8: ='Calcul CB'!$D$17+$C8*SIN(ACOS(($C8*$C8+$X$2-$U$2)/(2*$C8*SQRT($X$2)))-ATAN(ABS($W$2)/$V$2)) -> 456.7267237 | W8: ='Calcul CB'!$C$17+($C8+$D8*0.5)*COS(ACOS((($C8+$D8*0.5)*($C8+$D8*0.5)+$X$2-$U$2)/(2*($C8+$D8*0.5)*SQRT($X$2)))-ATAN(ABS($W$2)/$V$2)) -> 1021.928775 | X8: ='Calcul CB'!$D$17+($C8+$D8*0.5)*SIN(ACOS((($C8+$D8*0.5)*($C8+$D8*0.5)+$X$2-$U$2)/(2*($C8+$D8*0.5)*SQRT($X$2)))-ATAN(ABS($W$2)/$V$2)) -> 421.8784809 | Y8: ='Calcul CB'!$C$17+($C8+$D8)*COS(ACOS((($C8+$D8)*($C8+$D8)+$X$2-$U$2)/(2*($C8+$D8)*SQRT($X$2)))-ATAN(ABS($W$2)/$V$2)) -> 1159.918806 | Z8: ='Calcul CB'!$D$17+($C8+$D8)*SIN(ACOS((($C8+$D8)*($C8+$D8)+$X$2-$U$2)/(2*($C8+$D8)*SQRT($X$2)))-ATAN(ABS($W$2)/$V$2)) -> 358.0229599 | AB8: ='Calcul CB'!$C$17+$C8*COS(ACOS(($C8*$C8+$AE$2-$AB$2)/(2*$C8*SQRT($AE$2)))-ATAN(ABS($AD$2)/$AC$2)) -> 294.4759471 | AC8: ='Calcul CB'!$D$17+$C8*SIN(ACOS(($C8*$C8+$AE$2-$AB$2)/(2*$C8*SQRT($AE$2)))-ATAN(ABS($AD$2)/$AC$2)) -> 998.8515661 | AD8: ='Calcul CB'!$C$17+($C8+$D8*0.5)*COS(ACOS((($C8+$D8*0.5)*($C8+$D8*0.5)+$AE$2-$AB$2)/(2*($C8+$D8*0.5)*SQRT($AE$2)))-ATAN(ABS($AD$2)/$AC$2)) -> 528.5128041 | AE8: ='Calcul CB'!$D$17+($C8+$D8*0.5)*SIN(ACOS((($C8+$D8*0.5)*($C8+$D8*0.5)+$AE$2-$AB$2)/(2*($C8+$D8*0.5)*SQRT($AE$2)))-ATAN(ABS($AD$2)/$AC$2)) -> 1113.437199 | AF8: ='Calcul CB'!$C$17+($C8+$D8)*COS(ACOS((($C8+$D8)*($C8+$D8)+$AE$2-$AB$2)/(2*($C8+$D8)*SQRT($AE$2)))-ATAN(ABS($AD$2)/$AC$2)) -> 795.0039799 | AG8: ='Calcul CB'!$D$17+($C8+$D8)*SIN(ACOS((($C8+$D8)*($C8+$D8)+$AE$2-$AB$2)/(2*($C8+$D8)*SQRT($AE$2)))-ATAN(ABS($AD$2)/$AC$2)) -> 1143.538967
A9: Vérin nu, R/R, cat2, l0=610mm, c=350mm | B9: 2 | C9: 610 | D9: 350 | E9: TENNN305035022 | G9: ='Calcul CB'!$J$23-('Choix vérin basc'!$C9+0.5*'Choix vérin basc'!$D9) -> -197.5577284 | H9: =ABS(G9) -> 197.5577284 | I9: ='Calcul CB'!$J$24-('Choix vérin basc'!$C9+0.5*'Choix vérin basc'!$D9) -> -348.3738903 | J9: =ABS(I9) -> 348.3738903 | K9: ='Calcul CB'!$J$25-('Choix vérin basc'!$C9+0.5*'Choix vérin basc'!$D9) -> 25.3912787 | L9: =ABS(K9) -> 25.3912787 | N9: ='Calcul CB'!$C$17+$C9*COS(ACOS(($C9*$C9+$Q$2-$N$2)/(2*$C9*SQRT($Q$2)))-ATAN(ABS($P$2)/$O$2)) -> 846.4969783 | O9: ='Calcul CB'!$D$17+$C9*SIN(ACOS(($C9*$C9+$Q$2-$N$2)/(2*$C9*SQRT($Q$2)))-ATAN(ABS($P$2)/$O$2)) -> 774.5471791 | P9: ='Calcul CB'!$C$17+($C9+$D9*0.5)*COS(ACOS((($C9+$D9*0.5)*($C9+$D9*0.5)+$Q$2-$N$2)/(2*($C9+$D9*0.5)*SQRT($Q$2)))-ATAN(ABS($P$2)/$O$2)) -> 1060.794489 | Q9: ='Calcul CB'!$D$17+($C9+$D9*0.5)*SIN(ACOS((($C9+$D9*0.5)*($C9+$D9*0.5)+$Q$2-$N$2)/(2*($C9+$D9*0.5)*SQRT($Q$2)))-ATAN(ABS($P$2)/$O$2)) -> 736.6433577 | R9: ='Calcul CB'!$C$17+($C9+$D9)*COS(ACOS((($C9+$D9)*($C9+$D9)+$Q$2-$N$2)/(2*($C9+$D9)*SQRT($Q$2)))-ATAN(ABS($P$2)/$O$2)) -> 1273.229575 | S9: ='Calcul CB'!$D$17+($C9+$D9)*SIN(ACOS((($C9+$D9)*($C9+$D9)+$Q$2-$N$2)/(2*($C9+$D9)*SQRT($Q$2)))-ATAN(ABS($P$2)/$O$2)) -> 628.6560067 | T9: =(H9+J9+L9)/3 -> 190.4409658 | U9: ='Calcul CB'!$C$17+$C9*COS(ACOS(($C9*$C9+$X$2-$U$2)/(2*$C9*SQRT($X$2)))-ATAN(ABS($W$2)/$V$2)) -> 939.98305 | V9: ='Calcul CB'!$D$17+$C9*SIN(ACOS(($C9*$C9+$X$2-$U$2)/(2*$C9*SQRT($X$2)))-ATAN(ABS($W$2)/$V$2)) -> 445.4526088 | W9: ='Calcul CB'!$C$17+($C9+$D9*0.5)*COS(ACOS((($C9+$D9*0.5)*($C9+$D9*0.5)+$X$2-$U$2)/(2*($C9+$D9*0.5)*SQRT($X$2)))-ATAN(ABS($W$2)/$V$2)) -> 1112.21033 | X9: ='Calcul CB'!$D$17+($C9+$D9*0.5)*SIN(ACOS((($C9+$D9*0.5)*($C9+$D9*0.5)+$X$2-$U$2)/(2*($C9+$D9*0.5)*SQRT($X$2)))-ATAN(ABS($W$2)/$V$2)) -> 383.8789067 | Y9: ='Calcul CB'!$C$17+($C9+$D9)*COS(ACOS((($C9+$D9)*($C9+$D9)+$X$2-$U$2)/(2*($C9+$D9)*SQRT($X$2)))-ATAN(ABS($W$2)/$V$2)) -> 1274.112871 | Z9: ='Calcul CB'!$D$17+($C9+$D9)*SIN(ACOS((($C9+$D9)*($C9+$D9)+$X$2-$U$2)/(2*($C9+$D9)*SQRT($X$2)))-ATAN(ABS($W$2)/$V$2)) -> 276.0721767 | AB9: ='Calcul CB'!$C$17+$C9*COS(ACOS(($C9*$C9+$AE$2-$AB$2)/(2*$C9*SQRT($AE$2)))-ATAN(ABS($AD$2)/$AC$2)) -> 389.0129553 | AC9: ='Calcul CB'!$D$17+$C9*SIN(ACOS(($C9*$C9+$AE$2-$AB$2)/(2*$C9*SQRT($AE$2)))-ATAN(ABS($AD$2)/$AC$2)) -> 1057.138758 | AD9: ='Calcul CB'!$C$17+($C9+$D9*0.5)*COS(ACOS((($C9+$D9*0.5)*($C9+$D9*0.5)+$AE$2-$AB$2)/(2*($C9+$D9*0.5)*SQRT($AE$2)))-ATAN(ABS($AD$2)/$AC$2)) -> 697.9597913 | AE9: ='Calcul CB'!$D$17+($C9+$D9*0.5)*SIN(ACOS((($C9+$D9*0.5)*($C9+$D9*0.5)+$AE$2-$AB$2)/(2*($C9+$D9*0.5)*SQRT($AE$2)))-ATAN(ABS($AD$2)/$AC$2)) -> 1143.419492 | AF9: ='Calcul CB'!$C$17+($C9+$D9)*COS(ACOS((($C9+$D9)*($C9+$D9)+$AE$2-$AB$2)/(2*($C9+$D9)*SQRT($AE$2)))-ATAN(ABS($AD$2)/$AC$2)) -> 1052.082346 | AG9: ='Calcul CB'!$D$17+($C9+$D9)*SIN(ACOS((($C9+$D9)*($C9+$D9)+$AE$2-$AB$2)/(2*($C9+$D9)*SQRT($AE$2)))-ATAN(ABS($AD$2)/$AC$2)) -> 1082.611322
A10: Vérin équipé, R/R, cat1, l0=440mm, c=200mm | B10: 1 | C10: 440 | D10: 200 | E10: TEVHN305020011 | G10: ='Calcul CB'!$J$23-('Choix vérin basc'!$C10+0.5*'Choix vérin basc'!$D10) -> 47.44227163 | H10: =ABS(G10) -> 47.44227163 | I10: ='Calcul CB'!$J$24-('Choix vérin basc'!$C10+0.5*'Choix vérin basc'!$D10) -> -103.3738903 | J10: =ABS(I10) -> 103.3738903 | K10: ='Calcul CB'!$J$25-('Choix vérin basc'!$C10+0.5*'Choix vérin basc'!$D10) -> 270.3912787 | L10: =ABS(K10) -> 270.3912787 | N10: ='Calcul CB'!$C$17+$C10*COS(ACOS(($C10*$C10+$Q$2-$N$2)/(2*$C10*SQRT($Q$2)))-ATAN(ABS($P$2)/$O$2)) -> 646.7604451 | O10: ='Calcul CB'!$D$17+$C10*SIN(ACOS(($C10*$C10+$Q$2-$N$2)/(2*$C10*SQRT($Q$2)))-ATAN(ABS($P$2)/$O$2)) -> 755.3896207 | P10: ='Calcul CB'!$C$17+($C10+$D10*0.5)*COS(ACOS((($C10+$D10*0.5)*($C10+$D10*0.5)+$Q$2-$N$2)/(2*($C10+$D10*0.5)*SQRT($Q$2)))-ATAN(ABS($P$2)/$O$2)) -> 762.8311483 | Q10: ='Calcul CB'!$D$17+($C10+$D10*0.5)*SIN(ACOS((($C10+$D10*0.5)*($C10+$D10*0.5)+$Q$2-$N$2)/(2*($C10+$D10*0.5)*SQRT($Q$2)))-ATAN(ABS($P$2)/$O$2)) -> 772.8888309 | R10: ='Calcul CB'!$C$17+($C10+$D10)*COS(ACOS((($C10+$D10)*($C10+$D10)+$Q$2-$N$2)/(2*($C10+$D10)*SQRT($Q$2)))-ATAN(ABS($P$2)/$O$2)) -> 882.8352078 | S10: ='Calcul CB'!$D$17+($C10+$D10)*SIN(ACOS((($C10+$D10)*($C10+$D10)+$Q$2-$N$2)/(2*($C10+$D10)*SQRT($Q$2)))-ATAN(ABS($P$2)/$O$2)) -> 772.4488068 | T10: =(H10+J10+L10)/3 -> 140.4024802 | U10: ='Calcul CB'!$C$17+$C10*COS(ACOS(($C10*$C10+$X$2-$U$2)/(2*$C10*SQRT($X$2)))-ATAN(ABS($W$2)/$V$2)) -> 769.7443981 | V10: ='Calcul CB'!$D$17+$C10*SIN(ACOS(($C10*$C10+$X$2-$U$2)/(2*$C10*SQRT($X$2)))-ATAN(ABS($W$2)/$V$2)) -> 464.9954782 | W10: ='Calcul CB'!$C$17+($C10+$D10*0.5)*COS(ACOS((($C10+$D10*0.5)*($C10+$D10*0.5)+$X$2-$U$2)/(2*($C10+$D10*0.5)*SQRT($X$2)))-ATAN(ABS($W$2)/$V$2)) -> 869.9387062 | X10: ='Calcul CB'!$D$17+($C10+$D10*0.5)*SIN(ACOS((($C10+$D10*0.5)*($C10+$D10*0.5)+$X$2-$U$2)/(2*($C10+$D10*0.5)*SQRT($X$2)))-ATAN(ABS($W$2)/$V$2)) -> 458.1359438 | Y10: ='Calcul CB'!$C$17+($C10+$D10)*COS(ACOS((($C10+$D10)*($C10+$D10)+$X$2-$U$2)/(2*($C10+$D10)*SQRT($X$2)))-ATAN(ABS($W$2)/$V$2)) -> 969.88706 | Z10: ='Calcul CB'!$D$17+($C10+$D10)*SIN(ACOS((($C10+$D10)*($C10+$D10)+$X$2-$U$2)/(2*($C10+$D10)*SQRT($X$2)))-ATAN(ABS($W$2)/$V$2)) -> 437.977085 | AB10: ='Calcul CB'!$C$17+$C10*COS(ACOS(($C10*$C10+$AE$2-$AB$2)/(2*$C10*SQRT($AE$2)))-ATAN(ABS($AD$2)/$AC$2)) -> 134.3832223 | AC10: ='Calcul CB'!$D$17+$C10*SIN(ACOS(($C10*$C10+$AE$2-$AB$2)/(2*$C10*SQRT($AE$2)))-ATAN(ABS($AD$2)/$AC$2)) -> 844.1244426 | AD10: ='Calcul CB'!$C$17+($C10+$D10*0.5)*COS(ACOS((($C10+$D10*0.5)*($C10+$D10*0.5)+$AE$2-$AB$2)/(2*($C10+$D10*0.5)*SQRT($AE$2)))-ATAN(ABS($AD$2)/$AC$2)) -> 279.2658566 | AE10: ='Calcul CB'!$D$17+($C10+$D10*0.5)*SIN(ACOS((($C10+$D10*0.5)*($C10+$D10*0.5)+$AE$2-$AB$2)/(2*($C10+$D10*0.5)*SQRT($AE$2)))-ATAN(ABS($AD$2)/$AC$2)) -> 987.6114272 | AF10: ='Calcul CB'!$C$17+($C10+$D10)*COS(ACOS((($C10+$D10)*($C10+$D10)+$AE$2-$AB$2)/(2*($C10+$D10)*SQRT($AE$2)))-ATAN(ABS($AD$2)/$AC$2)) -> 438.4540519 | AG10: ='Calcul CB'!$D$17+($C10+$D10)*SIN(ACOS((($C10+$D10)*($C10+$D10)+$AE$2-$AB$2)/(2*($C10+$D10)*SQRT($AE$2)))-ATAN(ABS($AD$2)/$AC$2)) -> 1080.743782
A11: Vérin sans flexible, R/C, cat2, l0=590mm, c=285mm | B11: 2 | C11: 590 | D11: 285 | E11: TCVNN305028522 | G11: ='Calcul CB'!$J$23-('Choix vérin basc'!$C11+0.5*'Choix vérin basc'!$D11) -> -145.0577284 | H11: =ABS(G11) -> 145.0577284 | I11: ='Calcul CB'!$J$24-('Choix vérin basc'!$C11+0.5*'Choix vérin basc'!$D11) -> -295.8738903 | J11: =ABS(I11) -> 295.8738903 | K11: ='Calcul CB'!$J$25-('Choix vérin basc'!$C11+0.5*'Choix vérin basc'!$D11) -> 77.8912787 | L11: =ABS(K11) -> 77.8912787 | N11: ='Calcul CB'!$C$17+$C11*COS(ACOS(($C11*$C11+$Q$2-$N$2)/(2*$C11*SQRT($Q$2)))-ATAN(ABS($P$2)/$O$2)) -> 822.4198192 | O11: ='Calcul CB'!$D$17+$C11*SIN(ACOS(($C11*$C11+$Q$2-$N$2)/(2*$C11*SQRT($Q$2)))-ATAN(ABS($P$2)/$O$2)) -> 774.9964948 | P11: ='Calcul CB'!$C$17+($C11+$D11*0.5)*COS(ACOS((($C11+$D11*0.5)*($C11+$D11*0.5)+$Q$2-$N$2)/(2*($C11+$D11*0.5)*SQRT($Q$2)))-ATAN(ABS($P$2)/$O$2)) -> 996.1066749 | Q11: ='Calcul CB'!$D$17+($C11+$D11*0.5)*SIN(ACOS((($C11+$D11*0.5)*($C11+$D11*0.5)+$Q$2-$N$2)/(2*($C11+$D11*0.5)*SQRT($Q$2)))-ATAN(ABS($P$2)/$O$2)) -> 754.7263488 | R11: ='Calcul CB'!$C$17+($C11+$D11)*COS(ACOS((($C11+$D11)*($C11+$D11)+$Q$2-$N$2)/(2*($C11+$D11)*SQRT($Q$2)))-ATAN(ABS($P$2)/$O$2)) -> 1171.196703 | S11: ='Calcul CB'!$D$17+($C11+$D11)*SIN(ACOS((($C11+$D11)*($C11+$D11)+$Q$2-$N$2)/(2*($C11+$D11)*SQRT($Q$2)))-ATAN(ABS($P$2)/$O$2)) -> 690.8591016 | T11: =(H11+J11+L11)/3 -> 172.9409658 | U11: ='Calcul CB'!$C$17+$C11*COS(ACOS(($C11*$C11+$X$2-$U$2)/(2*$C11*SQRT($X$2)))-ATAN(ABS($W$2)/$V$2)) -> 919.9999476 | V11: ='Calcul CB'!$D$17+$C11*SIN(ACOS(($C11*$C11+$X$2-$U$2)/(2*$C11*SQRT($X$2)))-ATAN(ABS($W$2)/$V$2)) -> 449.7513154 | W11: ='Calcul CB'!$C$17+($C11+$D11*0.5)*COS(ACOS((($C11+$D11*0.5)*($C11+$D11*0.5)+$X$2-$U$2)/(2*($C11+$D11*0.5)*SQRT($X$2)))-ATAN(ABS($W$2)/$V$2)) -> 1061.235671 | X11: ='Calcul CB'!$D$17+($C11+$D11*0.5)*SIN(ACOS((($C11+$D11*0.5)*($C11+$D11*0.5)+$X$2-$U$2)/(2*($C11+$D11*0.5)*SQRT($X$2)))-ATAN(ABS($W$2)/$V$2)) -> 406.9808964 | Y11: ='Calcul CB'!$C$17+($C11+$D11)*COS(ACOS((($C11+$D11)*($C11+$D11)+$X$2-$U$2)/(2*($C11+$D11)*SQRT($X$2)))-ATAN(ABS($W$2)/$V$2)) -> 1197.349711 | Z11: ='Calcul CB'!$D$17+($C11+$D11)*SIN(ACOS((($C11+$D11)*($C11+$D11)+$X$2-$U$2)/(2*($C11+$D11)*SQRT($X$2)))-ATAN(ABS($W$2)/$V$2)) -> 334.5466353 | AB11: ='Calcul CB'!$C$17+$C11*COS(ACOS(($C11*$C11+$AE$2-$AB$2)/(2*$C11*SQRT($AE$2)))-ATAN(ABS($AD$2)/$AC$2)) -> 356.8640442 | AC11: ='Calcul CB'!$D$17+$C11*SIN(ACOS(($C11*$C11+$AE$2-$AB$2)/(2*$C11*SQRT($AE$2)))-ATAN(ABS($AD$2)/$AC$2)) -> 1039.388092 | AD11: ='Calcul CB'!$C$17+($C11+$D11*0.5)*COS(ACOS((($C11+$D11*0.5)*($C11+$D11*0.5)+$AE$2-$AB$2)/(2*($C11+$D11*0.5)*SQRT($AE$2)))-ATAN(ABS($AD$2)/$AC$2)) -> 600.1284038 | AE11: ='Calcul CB'!$D$17+($C11+$D11*0.5)*SIN(ACOS((($C11+$D11*0.5)*($C11+$D11*0.5)+$AE$2-$AB$2)/(2*($C11+$D11*0.5)*SQRT($AE$2)))-ATAN(ABS($AD$2)/$AC$2)) -> 1130.872158 | AF11: ='Calcul CB'!$C$17+($C11+$D11)*COS(ACOS((($C11+$D11)*($C11+$D11)+$AE$2-$AB$2)/(2*($C11+$D11)*SQRT($AE$2)))-ATAN(ABS($AD$2)/$AC$2)) -> 875.1814505 | AG11: ='Calcul CB'!$D$17+($C11+$D11)*SIN(ACOS((($C11+$D11)*($C11+$D11)+$AE$2-$AB$2)/(2*($C11+$D11)*SQRT($AE$2)))-ATAN(ABS($AD$2)/$AC$2)) -> 1134.399142
A12: Vérin nu, R/R, cat1, l0=550mm, c=285mm | B12: 1 | C12: 550 | D12: 285 | E12: TENNN305028511 | G12: ='Calcul CB'!$J$23-('Choix vérin basc'!$C12+0.5*'Choix vérin basc'!$D12) -> -105.0577284 | H12: =ABS(G12) -> 105.0577284 | I12: ='Calcul CB'!$J$24-('Choix vérin basc'!$C12+0.5*'Choix vérin basc'!$D12) -> -255.8738903 | J12: =ABS(I12) -> 255.8738903 | K12: ='Calcul CB'!$J$25-('Choix vérin basc'!$C12+0.5*'Choix vérin basc'!$D12) -> 117.8912787 | L12: =ABS(K12) -> 117.8912787 | N12: ='Calcul CB'!$C$17+$C12*COS(ACOS(($C12*$C12+$Q$2-$N$2)/(2*$C12*SQRT($Q$2)))-ATAN(ABS($P$2)/$O$2)) -> 774.6744067 | O12: ='Calcul CB'!$D$17+$C12*SIN(ACOS(($C12*$C12+$Q$2-$N$2)/(2*$C12*SQRT($Q$2)))-ATAN(ABS($P$2)/$O$2)) -> 773.6737123 | P12: ='Calcul CB'!$C$17+($C12+$D12*0.5)*COS(ACOS((($C12+$D12*0.5)*($C12+$D12*0.5)+$Q$2-$N$2)/(2*($C12+$D12*0.5)*SQRT($Q$2)))-ATAN(ABS($P$2)/$O$2)) -> 946.948754 | Q12: ='Calcul CB'!$D$17+($C12+$D12*0.5)*SIN(ACOS((($C12+$D12*0.5)*($C12+$D12*0.5)+$Q$2-$N$2)/(2*($C12+$D12*0.5)*SQRT($Q$2)))-ATAN(ABS($P$2)/$O$2)) -> 764.5321683 | R12: ='Calcul CB'!$C$17+($C12+$D12)*COS(ACOS((($C12+$D12)*($C12+$D12)+$Q$2-$N$2)/(2*($C12+$D12)*SQRT($Q$2)))-ATAN(ABS($P$2)/$O$2)) -> 1122.296434 | S12: ='Calcul CB'!$D$17+($C12+$D12)*SIN(ACOS((($C12+$D12)*($C12+$D12)+$Q$2-$N$2)/(2*($C12+$D12)*SQRT($Q$2)))-ATAN(ABS($P$2)/$O$2)) -> 713.6121416 | T12: =(H12+J12+L12)/3 -> 159.6076324 | U12: ='Calcul CB'!$C$17+$C12*COS(ACOS(($C12*$C12+$X$2-$U$2)/(2*$C12*SQRT($X$2)))-ATAN(ABS($W$2)/$V$2)) -> 879.9588632 | V12: ='Calcul CB'!$D$17+$C12*SIN(ACOS(($C12*$C12+$X$2-$U$2)/(2*$C12*SQRT($X$2)))-ATAN(ABS($W$2)/$V$2)) -> 456.7267237 | W12: ='Calcul CB'!$C$17+($C12+$D12*0.5)*COS(ACOS((($C12+$D12*0.5)*($C12+$D12*0.5)+$X$2-$U$2)/(2*($C12+$D12*0.5)*SQRT($X$2)))-ATAN(ABS($W$2)/$V$2)) -> 1021.928775 | X12: ='Calcul CB'!$D$17+($C12+$D12*0.5)*SIN(ACOS((($C12+$D12*0.5)*($C12+$D12*0.5)+$X$2-$U$2)/(2*($C12+$D12*0.5)*SQRT($X$2)))-ATAN(ABS($W$2)/$V$2)) -> 421.8784809 | Y12: ='Calcul CB'!$C$17+($C12+$D12)*COS(ACOS((($C12+$D12)*($C12+$D12)+$X$2-$U$2)/(2*($C12+$D12)*SQRT($X$2)))-ATAN(ABS($W$2)/$V$2)) -> 1159.918806 | Z12: ='Calcul CB'!$D$17+($C12+$D12)*SIN(ACOS((($C12+$D12)*($C12+$D12)+$X$2-$U$2)/(2*($C12+$D12)*SQRT($X$2)))-ATAN(ABS($W$2)/$V$2)) -> 358.0229599 | AB12: ='Calcul CB'!$C$17+$C12*COS(ACOS(($C12*$C12+$AE$2-$AB$2)/(2*$C12*SQRT($AE$2)))-ATAN(ABS($AD$2)/$AC$2)) -> 294.4759471 | AC12: ='Calcul CB'!$D$17+$C12*SIN(ACOS(($C12*$C12+$AE$2-$AB$2)/(2*$C12*SQRT($AE$2)))-ATAN(ABS($AD$2)/$AC$2)) -> 998.8515661 | AD12: ='Calcul CB'!$C$17+($C12+$D12*0.5)*COS(ACOS((($C12+$D12*0.5)*($C12+$D12*0.5)+$AE$2-$AB$2)/(2*($C12+$D12*0.5)*SQRT($AE$2)))-ATAN(ABS($AD$2)/$AC$2)) -> 528.5128041 | AE12: ='Calcul CB'!$D$17+($C12+$D12*0.5)*SIN(ACOS((($C12+$D12*0.5)*($C12+$D12*0.5)+$AE$2-$AB$2)/(2*($C12+$D12*0.5)*SQRT($AE$2)))-ATAN(ABS($AD$2)/$AC$2)) -> 1113.437199 | AF12: ='Calcul CB'!$C$17+($C12+$D12)*COS(ACOS((($C12+$D12)*($C12+$D12)+$AE$2-$AB$2)/(2*($C12+$D12)*SQRT($AE$2)))-ATAN(ABS($AD$2)/$AC$2)) -> 795.0039799 | AG12: ='Calcul CB'!$D$17+($C12+$D12)*SIN(ACOS((($C12+$D12)*($C12+$D12)+$AE$2-$AB$2)/(2*($C12+$D12)*SQRT($AE$2)))-ATAN(ABS($AD$2)/$AC$2)) -> 1143.538967
A13: Vérin équipé, R/R, cat1, l0=390mm, c=150mm | B13: 1 | C13: 390 | D13: 150 | E13: TEVHN305015011 | G13: ='Calcul CB'!$J$23-('Choix vérin basc'!$C13+0.5*'Choix vérin basc'!$D13) -> 122.4422716 | H13: =ABS(G13) -> 122.4422716 | I13: ='Calcul CB'!$J$24-('Choix vérin basc'!$C13+0.5*'Choix vérin basc'!$D13) -> -28.37389028 | J13: =ABS(I13) -> 28.37389028 | K13: ='Calcul CB'!$J$25-('Choix vérin basc'!$C13+0.5*'Choix vérin basc'!$D13) -> 345.3912787 | L13: =ABS(K13) -> 345.3912787 | N13: ='Calcul CB'!$C$17+$C13*COS(ACOS(($C13*$C13+$Q$2-$N$2)/(2*$C13*SQRT($Q$2)))-ATAN(ABS($P$2)/$O$2)) -> 590.5007501 | O13: ='Calcul CB'!$D$17+$C13*SIN(ACOS(($C13*$C13+$Q$2-$N$2)/(2*$C13*SQRT($Q$2)))-ATAN(ABS($P$2)/$O$2)) -> 740.2401751 | P13: ='Calcul CB'!$C$17+($C13+$D13*0.5)*COS(ACOS((($C13+$D13*0.5)*($C13+$D13*0.5)+$Q$2-$N$2)/(2*($C13+$D13*0.5)*SQRT($Q$2)))-ATAN(ABS($P$2)/$O$2)) -> 675.3499188 | Q13: ='Calcul CB'!$D$17+($C13+$D13*0.5)*SIN(ACOS((($C13+$D13*0.5)*($C13+$D13*0.5)+$Q$2-$N$2)/(2*($C13+$D13*0.5)*SQRT($Q$2)))-ATAN(ABS($P$2)/$O$2)) -> 761.3814921 | R13: ='Calcul CB'!$C$17+($C13+$D13)*COS(ACOS((($C13+$D13)*($C13+$D13)+$Q$2-$N$2)/(2*($C13+$D13)*SQRT($Q$2)))-ATAN(ABS($P$2)/$O$2)) -> 762.8311483 | S13: ='Calcul CB'!$D$17+($C13+$D13)*SIN(ACOS((($C13+$D13)*($C13+$D13)+$Q$2-$N$2)/(2*($C13+$D13)*SQRT($Q$2)))-ATAN(ABS($P$2)/$O$2)) -> 772.8888309 | T13: =(H13+J13+L13)/3 -> 165.4024802 | U13: ='Calcul CB'!$C$17+$C13*COS(ACOS(($C13*$C13+$X$2-$U$2)/(2*$C13*SQRT($X$2)))-ATAN(ABS($W$2)/$V$2)) -> 719.7642519 | V13: ='Calcul CB'!$D$17+$C13*SIN(ACOS(($C13*$C13+$X$2-$U$2)/(2*$C13*SQRT($X$2)))-ATAN(ABS($W$2)/$V$2)) -> 463.5583173 | W13: ='Calcul CB'!$C$17+($C13+$D13*0.5)*COS(ACOS((($C13+$D13*0.5)*($C13+$D13*0.5)+$X$2-$U$2)/(2*($C13+$D13*0.5)*SQRT($X$2)))-ATAN(ABS($W$2)/$V$2)) -> 794.7737729 | X13: ='Calcul CB'!$D$17+($C13+$D13*0.5)*SIN(ACOS((($C13+$D13*0.5)*($C13+$D13*0.5)+$X$2-$U$2)/(2*($C13+$D13*0.5)*SQRT($X$2)))-ATAN(ABS($W$2)/$V$2)) -> 464.5031055 | Y13: ='Calcul CB'!$C$17+($C13+$D13)*COS(ACOS((($C13+$D13)*($C13+$D13)+$X$2-$U$2)/(2*($C13+$D13)*SQRT($X$2)))-ATAN(ABS($W$2)/$V$2)) -> 869.9387062 | Z13: ='Calcul CB'!$D$17+($C13+$D13)*SIN(ACOS((($C13+$D13)*($C13+$D13)+$X$2-$U$2)/(2*($C13+$D13)*SQRT($X$2)))-ATAN(ABS($W$2)/$V$2)) -> 458.1359438 | AB13: ='Calcul CB'!$C$17+$C13*COS(ACOS(($C13*$C13+$AE$2-$AB$2)/(2*$C13*SQRT($AE$2)))-ATAN(ABS($AD$2)/$AC$2)) -> 63.75814045 | AC13: ='Calcul CB'!$D$17+$C13*SIN(ACOS(($C13*$C13+$AE$2-$AB$2)/(2*$C13*SQRT($AE$2)))-ATAN(ABS($AD$2)/$AC$2)) -> 734.9829332 | AD13: ='Calcul CB'!$C$17+($C13+$D13*0.5)*COS(ACOS((($C13+$D13*0.5)*($C13+$D13*0.5)+$AE$2-$AB$2)/(2*($C13+$D13*0.5)*SQRT($AE$2)))-ATAN(ABS($AD$2)/$AC$2)) -> 169.5964282 | AE13: ='Calcul CB'!$D$17+($C13+$D13*0.5)*SIN(ACOS((($C13+$D13*0.5)*($C13+$D13*0.5)+$AE$2-$AB$2)/(2*($C13+$D13*0.5)*SQRT($AE$2)))-ATAN(ABS($AD$2)/$AC$2)) -> 886.4581242 | AF13: ='Calcul CB'!$C$17+($C13+$D13)*COS(ACOS((($C13+$D13)*($C13+$D13)+$AE$2-$AB$2)/(2*($C13+$D13)*SQRT($AE$2)))-ATAN(ABS($AD$2)/$AC$2)) -> 279.2658566 | AG13: ='Calcul CB'!$D$17+($C13+$D13)*SIN(ACOS((($C13+$D13)*($C13+$D13)+$AE$2-$AB$2)/(2*($C13+$D13)*SQRT($AE$2)))-ATAN(ABS($AD$2)/$AC$2)) -> 987.6114272
A14: Vérin nu, R/R, cat2, l0=580mm, c=300mm | B14: 2 | C14: 580 | D14: 300 | E14: TENNN356030022 | G14: ='Calcul CB'!$J$23-('Choix vérin basc'!$C14+0.5*'Choix vérin basc'!$D14) -> -142.5577284 | H14: =ABS(G14) -> 142.5577284 | I14: ='Calcul CB'!$J$24-('Choix vérin basc'!$C14+0.5*'Choix vérin basc'!$D14) -> -293.3738903 | J14: =ABS(I14) -> 293.3738903 | K14: ='Calcul CB'!$J$25-('Choix vérin basc'!$C14+0.5*'Choix vérin basc'!$D14) -> 80.3912787 | L14: =ABS(K14) -> 80.3912787 | N14: ='Calcul CB'!$C$17+$C14*COS(ACOS(($C14*$C14+$Q$2-$N$2)/(2*$C14*SQRT($Q$2)))-ATAN(ABS($P$2)/$O$2)) -> 810.4302503 | O14: ='Calcul CB'!$D$17+$C14*SIN(ACOS(($C14*$C14+$Q$2-$N$2)/(2*$C14*SQRT($Q$2)))-ATAN(ABS($P$2)/$O$2)) -> 774.9411864 | P14: ='Calcul CB'!$C$17+($C14+$D14*0.5)*COS(ACOS((($C14+$D14*0.5)*($C14+$D14*0.5)+$Q$2-$N$2)/(2*($C14+$D14*0.5)*SQRT($Q$2)))-ATAN(ABS($P$2)/$O$2)) -> 993.0292089 | Q14: ='Calcul CB'!$D$17+($C14+$D14*0.5)*SIN(ACOS((($C14+$D14*0.5)*($C14+$D14*0.5)+$Q$2-$N$2)/(2*($C14+$D14*0.5)*SQRT($Q$2)))-ATAN(ABS($P$2)/$O$2)) -> 755.4378302 | R14: ='Calcul CB'!$C$17+($C14+$D14)*COS(ACOS((($C14+$D14)*($C14+$D14)+$Q$2-$N$2)/(2*($C14+$D14)*SQRT($Q$2)))-ATAN(ABS($P$2)/$O$2)) -> 1177.2798 | S14: ='Calcul CB'!$D$17+($C14+$D14)*SIN(ACOS((($C14+$D14)*($C14+$D14)+$Q$2-$N$2)/(2*($C14+$D14)*SQRT($Q$2)))-ATAN(ABS($P$2)/$O$2)) -> 687.7329184 | T14: =(H14+J14+L14)/3 -> 172.1076324 | U14: ='Calcul CB'!$C$17+$C14*COS(ACOS(($C14*$C14+$X$2-$U$2)/(2*$C14*SQRT($X$2)))-ATAN(ABS($W$2)/$V$2)) -> 909.9975173 | V14: ='Calcul CB'!$D$17+$C14*SIN(ACOS(($C14*$C14+$X$2-$U$2)/(2*$C14*SQRT($X$2)))-ATAN(ABS($W$2)/$V$2)) -> 451.6970446 | W14: ='Calcul CB'!$C$17+($C14+$D14*0.5)*COS(ACOS((($C14+$D14*0.5)*($C14+$D14*0.5)+$X$2-$U$2)/(2*($C14+$D14*0.5)*SQRT($X$2)))-ATAN(ABS($W$2)/$V$2)) -> 1058.789614 | X14: ='Calcul CB'!$D$17+($C14+$D14*0.5)*SIN(ACOS((($C14+$D14*0.5)*($C14+$D14*0.5)+$X$2-$U$2)/(2*($C14+$D14*0.5)*SQRT($X$2)))-ATAN(ABS($W$2)/$V$2)) -> 407.979782 | Y14: ='Calcul CB'!$C$17+($C14+$D14)*COS(ACOS((($C14+$D14)*($C14+$D14)+$X$2-$U$2)/(2*($C14+$D14)*SQRT($X$2)))-ATAN(ABS($W$2)/$V$2)) -> 1201.975951 | Z14: ='Calcul CB'!$D$17+($C14+$D14)*SIN(ACOS((($C14+$D14)*($C14+$D14)+$X$2-$U$2)/(2*($C14+$D14)*SQRT($X$2)))-ATAN(ABS($W$2)/$V$2)) -> 331.4338087 | AB14: ='Calcul CB'!$C$17+$C14*COS(ACOS(($C14*$C14+$AE$2-$AB$2)/(2*$C14*SQRT($AE$2)))-ATAN(ABS($AD$2)/$AC$2)) -> 341.0305542 | AC14: ='Calcul CB'!$D$17+$C14*SIN(ACOS(($C14*$C14+$AE$2-$AB$2)/(2*$C14*SQRT($AE$2)))-ATAN(ABS($AD$2)/$AC$2)) -> 1029.8951 | AD14: ='Calcul CB'!$C$17+($C14+$D14*0.5)*COS(ACOS((($C14+$D14*0.5)*($C14+$D14*0.5)+$AE$2-$AB$2)/(2*($C14+$D14*0.5)*SQRT($AE$2)))-ATAN(ABS($AD$2)/$AC$2)) -> 595.5774051 | AE14: ='Calcul CB'!$D$17+($C14+$D14*0.5)*SIN(ACOS((($C14+$D14*0.5)*($C14+$D14*0.5)+$AE$2-$AB$2)/(2*($C14+$D14*0.5)*SQRT($AE$2)))-ATAN(ABS($AD$2)/$AC$2)) -> 1129.976942 | AF14: ='Calcul CB'!$C$17+($C14+$D14)*COS(ACOS((($C14+$D14)*($C14+$D14)+$AE$2-$AB$2)/(2*($C14+$D14)*SQRT($AE$2)))-ATAN(ABS($AD$2)/$AC$2)) -> 885.3529528 | AG14: ='Calcul CB'!$D$17+($C14+$D14)*SIN(ACOS((($C14+$D14)*($C14+$D14)+$AE$2-$AB$2)/(2*($C14+$D14)*SQRT($AE$2)))-ATAN(ABS($AD$2)/$AC$2)) -> 1132.629547
A15: Vérin nu, R/R, cat2, l0=440mm, c=200mm | B15: 2 | C15: 440 | D15: 200 | E15: TENNN305020022 | G15: ='Calcul CB'!$J$23-('Choix vérin basc'!$C15+0.5*'Choix vérin basc'!$D15) -> 47.44227163 | H15: =ABS(G15) -> 47.44227163 | I15: ='Calcul CB'!$J$24-('Choix vérin basc'!$C15+0.5*'Choix vérin basc'!$D15) -> -103.3738903 | J15: =ABS(I15) -> 103.3738903 | K15: ='Calcul CB'!$J$25-('Choix vérin basc'!$C15+0.5*'Choix vérin basc'!$D15) -> 270.3912787 | L15: =ABS(K15) -> 270.3912787 | N15: ='Calcul CB'!$C$17+$C15*COS(ACOS(($C15*$C15+$Q$2-$N$2)/(2*$C15*SQRT($Q$2)))-ATAN(ABS($P$2)/$O$2)) -> 646.7604451 | O15: ='Calcul CB'!$D$17+$C15*SIN(ACOS(($C15*$C15+$Q$2-$N$2)/(2*$C15*SQRT($Q$2)))-ATAN(ABS($P$2)/$O$2)) -> 755.3896207 | P15: ='Calcul CB'!$C$17+($C15+$D15*0.5)*COS(ACOS((($C15+$D15*0.5)*($C15+$D15*0.5)+$Q$2-$N$2)/(2*($C15+$D15*0.5)*SQRT($Q$2)))-ATAN(ABS($P$2)/$O$2)) -> 762.8311483 | Q15: ='Calcul CB'!$D$17+($C15+$D15*0.5)*SIN(ACOS((($C15+$D15*0.5)*($C15+$D15*0.5)+$Q$2-$N$2)/(2*($C15+$D15*0.5)*SQRT($Q$2)))-ATAN(ABS($P$2)/$O$2)) -> 772.8888309 | R15: ='Calcul CB'!$C$17+($C15+$D15)*COS(ACOS((($C15+$D15)*($C15+$D15)+$Q$2-$N$2)/(2*($C15+$D15)*SQRT($Q$2)))-ATAN(ABS($P$2)/$O$2)) -> 882.8352078 | S15: ='Calcul CB'!$D$17+($C15+$D15)*SIN(ACOS((($C15+$D15)*($C15+$D15)+$Q$2-$N$2)/(2*($C15+$D15)*SQRT($Q$2)))-ATAN(ABS($P$2)/$O$2)) -> 772.4488068 | T15: =(H15+J15+L15)/3 -> 140.4024802 | U15: ='Calcul CB'!$C$17+$C15*COS(ACOS(($C15*$C15+$X$2-$U$2)/(2*$C15*SQRT($X$2)))-ATAN(ABS($W$2)/$V$2)) -> 769.7443981 | V15: ='Calcul CB'!$D$17+$C15*SIN(ACOS(($C15*$C15+$X$2-$U$2)/(2*$C15*SQRT($X$2)))-ATAN(ABS($W$2)/$V$2)) -> 464.9954782 | W15: ='Calcul CB'!$C$17+($C15+$D15*0.5)*COS(ACOS((($C15+$D15*0.5)*($C15+$D15*0.5)+$X$2-$U$2)/(2*($C15+$D15*0.5)*SQRT($X$2)))-ATAN(ABS($W$2)/$V$2)) -> 869.9387062 | X15: ='Calcul CB'!$D$17+($C15+$D15*0.5)*SIN(ACOS((($C15+$D15*0.5)*($C15+$D15*0.5)+$X$2-$U$2)/(2*($C15+$D15*0.5)*SQRT($X$2)))-ATAN(ABS($W$2)/$V$2)) -> 458.1359438 | Y15: ='Calcul CB'!$C$17+($C15+$D15)*COS(ACOS((($C15+$D15)*($C15+$D15)+$X$2-$U$2)/(2*($C15+$D15)*SQRT($X$2)))-ATAN(ABS($W$2)/$V$2)) -> 969.88706 | Z15: ='Calcul CB'!$D$17+($C15+$D15)*SIN(ACOS((($C15+$D15)*($C15+$D15)+$X$2-$U$2)/(2*($C15+$D15)*SQRT($X$2)))-ATAN(ABS($W$2)/$V$2)) -> 437.977085 | AB15: ='Calcul CB'!$C$17+$C15*COS(ACOS(($C15*$C15+$AE$2-$AB$2)/(2*$C15*SQRT($AE$2)))-ATAN(ABS($AD$2)/$AC$2)) -> 134.3832223 | AC15: ='Calcul CB'!$D$17+$C15*SIN(ACOS(($C15*$C15+$AE$2-$AB$2)/(2*$C15*SQRT($AE$2)))-ATAN(ABS($AD$2)/$AC$2)) -> 844.1244426 | AD15: ='Calcul CB'!$C$17+($C15+$D15*0.5)*COS(ACOS((($C15+$D15*0.5)*($C15+$D15*0.5)+$AE$2-$AB$2)/(2*($C15+$D15*0.5)*SQRT($AE$2)))-ATAN(ABS($AD$2)/$AC$2)) -> 279.2658566 | AE15: ='Calcul CB'!$D$17+($C15+$D15*0.5)*SIN(ACOS((($C15+$D15*0.5)*($C15+$D15*0.5)+$AE$2-$AB$2)/(2*($C15+$D15*0.5)*SQRT($AE$2)))-ATAN(ABS($AD$2)/$AC$2)) -> 987.6114272 | AF15: ='Calcul CB'!$C$17+($C15+$D15)*COS(ACOS((($C15+$D15)*($C15+$D15)+$AE$2-$AB$2)/(2*($C15+$D15)*SQRT($AE$2)))-ATAN(ABS($AD$2)/$AC$2)) -> 438.4540519 | AG15: ='Calcul CB'!$D$17+($C15+$D15)*SIN(ACOS((($C15+$D15)*($C15+$D15)+$AE$2-$AB$2)/(2*($C15+$D15)*SQRT($AE$2)))-ATAN(ABS($AD$2)/$AC$2)) -> 1080.743782
A16: Vérin sans flexible, R/R, cat.2, l0=550mm, c=250mm | B16: 2 | C16: 550 | D16: 250 | E16: TEVNN356025022 | G16: ='Calcul CB'!$J$23-('Choix vérin basc'!$C16+0.5*'Choix vérin basc'!$D16) -> -87.55772837 | H16: =ABS(G16) -> 87.55772837 | I16: ='Calcul CB'!$J$24-('Choix vérin basc'!$C16+0.5*'Choix vérin basc'!$D16) -> -238.3738903 | J16: =ABS(I16) -> 238.3738903 | K16: ='Calcul CB'!$J$25-('Choix vérin basc'!$C16+0.5*'Choix vérin basc'!$D16) -> 135.3912787 | L16: =ABS(K16) -> 135.3912787 | N16: ='Calcul CB'!$C$17+$C16*COS(ACOS(($C16*$C16+$Q$2-$N$2)/(2*$C16*SQRT($Q$2)))-ATAN(ABS($P$2)/$O$2)) -> 774.6744067 | O16: ='Calcul CB'!$D$17+$C16*SIN(ACOS(($C16*$C16+$Q$2-$N$2)/(2*$C16*SQRT($Q$2)))-ATAN(ABS($P$2)/$O$2)) -> 773.6737123 | P16: ='Calcul CB'!$C$17+($C16+$D16*0.5)*COS(ACOS((($C16+$D16*0.5)*($C16+$D16*0.5)+$Q$2-$N$2)/(2*($C16+$D16*0.5)*SQRT($Q$2)))-ATAN(ABS($P$2)/$O$2)) -> 925.5152928 | Q16: ='Calcul CB'!$D$17+($C16+$D16*0.5)*SIN(ACOS((($C16+$D16*0.5)*($C16+$D16*0.5)+$Q$2-$N$2)/(2*($C16+$D16*0.5)*SQRT($Q$2)))-ATAN(ABS($P$2)/$O$2)) -> 767.7837882 | R16: ='Calcul CB'!$C$17+($C16+$D16)*COS(ACOS((($C16+$D16)*($C16+$D16)+$Q$2-$N$2)/(2*($C16+$D16)*SQRT($Q$2)))-ATAN(ABS($P$2)/$O$2)) -> 1079.270685 | S16: ='Calcul CB'!$D$17+($C16+$D16)*SIN(ACOS((($C16+$D16)*($C16+$D16)+$Q$2-$N$2)/(2*($C16+$D16)*SQRT($Q$2)))-ATAN(ABS($P$2)/$O$2)) -> 730.3452158 | T16: =(H16+J16+L16)/3 -> 153.7742991 | U16: ='Calcul CB'!$C$17+$C16*COS(ACOS(($C16*$C16+$X$2-$U$2)/(2*$C16*SQRT($X$2)))-ATAN(ABS($W$2)/$V$2)) -> 879.9588632 | V16: ='Calcul CB'!$D$17+$C16*SIN(ACOS(($C16*$C16+$X$2-$U$2)/(2*$C16*SQRT($X$2)))-ATAN(ABS($W$2)/$V$2)) -> 456.7267237 | W16: ='Calcul CB'!$C$17+($C16+$D16*0.5)*COS(ACOS((($C16+$D16*0.5)*($C16+$D16*0.5)+$X$2-$U$2)/(2*($C16+$D16*0.5)*SQRT($X$2)))-ATAN(ABS($W$2)/$V$2)) -> 1004.630741 | X16: ='Calcul CB'!$D$17+($C16+$D16*0.5)*SIN(ACOS((($C16+$D16*0.5)*($C16+$D16*0.5)+$X$2-$U$2)/(2*($C16+$D16*0.5)*SQRT($X$2)))-ATAN(ABS($W$2)/$V$2)) -> 427.6759361 | Y16: ='Calcul CB'!$C$17+($C16+$D16)*COS(ACOS((($C16+$D16)*($C16+$D16)+$X$2-$U$2)/(2*($C16+$D16)*SQRT($X$2)))-ATAN(ABS($W$2)/$V$2)) -> 1126.618515 | Z16: ='Calcul CB'!$D$17+($C16+$D16)*SIN(ACOS((($C16+$D16)*($C16+$D16)+$X$2-$U$2)/(2*($C16+$D16)*SQRT($X$2)))-ATAN(ABS($W$2)/$V$2)) -> 376.5225141 | AB16: ='Calcul CB'!$C$17+$C16*COS(ACOS(($C16*$C16+$AE$2-$AB$2)/(2*$C16*SQRT($AE$2)))-ATAN(ABS($AD$2)/$AC$2)) -> 294.4759471 | AC16: ='Calcul CB'!$D$17+$C16*SIN(ACOS(($C16*$C16+$AE$2-$AB$2)/(2*$C16*SQRT($AE$2)))-ATAN(ABS($AD$2)/$AC$2)) -> 998.8515661 | AD16: ='Calcul CB'!$C$17+($C16+$D16*0.5)*COS(ACOS((($C16+$D16*0.5)*($C16+$D16*0.5)+$AE$2-$AB$2)/(2*($C16+$D16*0.5)*SQRT($AE$2)))-ATAN(ABS($AD$2)/$AC$2)) -> 497.9936433 | AE16: ='Calcul CB'!$D$17+($C16+$D16*0.5)*SIN(ACOS((($C16+$D16*0.5)*($C16+$D16*0.5)+$AE$2-$AB$2)/(2*($C16+$D16*0.5)*SQRT($AE$2)))-ATAN(ABS($AD$2)/$AC$2)) -> 1103.760763 | AF16: ='Calcul CB'!$C$17+($C16+$D16)*COS(ACOS((($C16+$D16)*($C16+$D16)+$AE$2-$AB$2)/(2*($C16+$D16)*SQRT($AE$2)))-ATAN(ABS($AD$2)/$AC$2)) -> 726.6870582 | AG16: ='Calcul CB'!$D$17+($C16+$D16)*SIN(ACOS((($C16+$D16)*($C16+$D16)+$AE$2-$AB$2)/(2*($C16+$D16)*SQRT($AE$2)))-ATAN(ABS($AD$2)/$AC$2)) -> 1144.722519
A17: Vérin sans flexible, R/C, cat.1, l0=490mm, c=200mm | B17: 1 | C17: 490 | D17: 200 | E17: TCVNN305020011 | G17: ='Calcul CB'!$J$23-('Choix vérin basc'!$C17+0.5*'Choix vérin basc'!$D17) -> -2.557728368 | H17: =ABS(G17) -> 2.557728368 | I17: ='Calcul CB'!$J$24-('Choix vérin basc'!$C17+0.5*'Choix vérin basc'!$D17) -> -153.3738903 | J17: =ABS(I17) -> 153.3738903 | K17: ='Calcul CB'!$J$25-('Choix vérin basc'!$C17+0.5*'Choix vérin basc'!$D17) -> 220.3912787 | L17: =ABS(K17) -> 220.3912787 | N17: ='Calcul CB'!$C$17+$C17*COS(ACOS(($C17*$C17+$Q$2-$N$2)/(2*$C17*SQRT($Q$2)))-ATAN(ABS($P$2)/$O$2)) -> 704.2339233 | O17: ='Calcul CB'!$D$17+$C17*SIN(ACOS(($C17*$C17+$Q$2-$N$2)/(2*$C17*SQRT($Q$2)))-ATAN(ABS($P$2)/$O$2)) -> 766.3051859 | P17: ='Calcul CB'!$C$17+($C17+$D17*0.5)*COS(ACOS((($C17+$D17*0.5)*($C17+$D17*0.5)+$Q$2-$N$2)/(2*($C17+$D17*0.5)*SQRT($Q$2)))-ATAN(ABS($P$2)/$O$2)) -> 822.4198192 | Q17: ='Calcul CB'!$D$17+($C17+$D17*0.5)*SIN(ACOS((($C17+$D17*0.5)*($C17+$D17*0.5)+$Q$2-$N$2)/(2*($C17+$D17*0.5)*SQRT($Q$2)))-ATAN(ABS($P$2)/$O$2)) -> 774.9964948 | R17: ='Calcul CB'!$C$17+($C17+$D17)*COS(ACOS((($C17+$D17)*($C17+$D17)+$Q$2-$N$2)/(2*($C17+$D17)*SQRT($Q$2)))-ATAN(ABS($P$2)/$O$2)) -> 943.8835891 | S17: ='Calcul CB'!$D$17+($C17+$D17)*SIN(ACOS((($C17+$D17)*($C17+$D17)+$Q$2-$N$2)/(2*($C17+$D17)*SQRT($Q$2)))-ATAN(ABS($P$2)/$O$2)) -> 765.034822 | T17: =(H17+J17+L17)/3 -> 125.4409658 | U17: ='Calcul CB'!$C$17+$C17*COS(ACOS(($C17*$C17+$X$2-$U$2)/(2*$C17*SQRT($X$2)))-ATAN(ABS($W$2)/$V$2)) -> 819.8221903 | V17: ='Calcul CB'!$D$17+$C17*SIN(ACOS(($C17*$C17+$X$2-$U$2)/(2*$C17*SQRT($X$2)))-ATAN(ABS($W$2)/$V$2)) -> 463.1993143 | W17: ='Calcul CB'!$C$17+($C17+$D17*0.5)*COS(ACOS((($C17+$D17*0.5)*($C17+$D17*0.5)+$X$2-$U$2)/(2*($C17+$D17*0.5)*SQRT($X$2)))-ATAN(ABS($W$2)/$V$2)) -> 919.9999476 | X17: ='Calcul CB'!$D$17+($C17+$D17*0.5)*SIN(ACOS((($C17+$D17*0.5)*($C17+$D17*0.5)+$X$2-$U$2)/(2*($C17+$D17*0.5)*SQRT($X$2)))-ATAN(ABS($W$2)/$V$2)) -> 449.7513154 | Y17: ='Calcul CB'!$C$17+($C17+$D17)*COS(ACOS((($C17+$D17)*($C17+$D17)+$X$2-$U$2)/(2*($C17+$D17)*SQRT($X$2)))-ATAN(ABS($W$2)/$V$2)) -> 1019.461042 | Z17: ='Calcul CB'!$D$17+($C17+$D17)*SIN(ACOS((($C17+$D17)*($C17+$D17)+$X$2-$U$2)/(2*($C17+$D17)*SQRT($X$2)))-ATAN(ABS($W$2)/$V$2)) -> 422.7333232 | AB17: ='Calcul CB'!$C$17+$C17*COS(ACOS(($C17*$C17+$AE$2-$AB$2)/(2*$C17*SQRT($AE$2)))-ATAN(ABS($AD$2)/$AC$2)) -> 205.3663947 | AC17: ='Calcul CB'!$D$17+$C17*SIN(ACOS(($C17*$C17+$AE$2-$AB$2)/(2*$C17*SQRT($AE$2)))-ATAN(ABS($AD$2)/$AC$2)) -> 923.8844421 | AD17: ='Calcul CB'!$C$17+($C17+$D17*0.5)*COS(ACOS((($C17+$D17*0.5)*($C17+$D17*0.5)+$AE$2-$AB$2)/(2*($C17+$D17*0.5)*SQRT($AE$2)))-ATAN(ABS($AD$2)/$AC$2)) -> 356.8640442 | AE17: ='Calcul CB'!$D$17+($C17+$D17*0.5)*SIN(ACOS((($C17+$D17*0.5)*($C17+$D17*0.5)+$AE$2-$AB$2)/(2*($C17+$D17*0.5)*SQRT($AE$2)))-ATAN(ABS($AD$2)/$AC$2)) -> 1039.388092 | AF17: ='Calcul CB'!$C$17+($C17+$D17)*COS(ACOS((($C17+$D17)*($C17+$D17)+$AE$2-$AB$2)/(2*($C17+$D17)*SQRT($AE$2)))-ATAN(ABS($AD$2)/$AC$2)) -> 524.1224572 | AG17: ='Calcul CB'!$D$17+($C17+$D17)*SIN(ACOS((($C17+$D17)*($C17+$D17)+$AE$2-$AB$2)/(2*($C17+$D17)*SQRT($AE$2)))-ATAN(ABS($AD$2)/$AC$2)) -> 1112.130253
A18: Vérin nu, R/R, cat2, l0 = 480mm, c=160mm | B18: 2 | C18: 480 | D18: 160 | E18: TEVNN305016022 | G18: ='Calcul CB'!$J$23-('Choix vérin basc'!$C18+0.5*'Choix vérin basc'!$D18) -> 27.44227163 | H18: =ABS(G18) -> 27.44227163 | I18: ='Calcul CB'!$J$24-('Choix vérin basc'!$C18+0.5*'Choix vérin basc'!$D18) -> -123.3738903 | J18: =ABS(I18) -> 123.3738903 | K18: ='Calcul CB'!$J$25-('Choix vérin basc'!$C18+0.5*'Choix vérin basc'!$D18) -> 250.3912787 | L18: =ABS(K18) -> 250.3912787 | N18: ='Calcul CB'!$C$17+$C18*COS(ACOS(($C18*$C18+$Q$2-$N$2)/(2*$C18*SQRT($Q$2)))-ATAN(ABS($P$2)/$O$2)) -> 692.6457452 | O18: ='Calcul CB'!$D$17+$C18*SIN(ACOS(($C18*$C18+$Q$2-$N$2)/(2*$C18*SQRT($Q$2)))-ATAN(ABS($P$2)/$O$2)) -> 764.4647253 | P18: ='Calcul CB'!$C$17+($C18+$D18*0.5)*COS(ACOS((($C18+$D18*0.5)*($C18+$D18*0.5)+$Q$2-$N$2)/(2*($C18+$D18*0.5)*SQRT($Q$2)))-ATAN(ABS($P$2)/$O$2)) -> 786.5561999 | Q18: ='Calcul CB'!$D$17+($C18+$D18*0.5)*SIN(ACOS((($C18+$D18*0.5)*($C18+$D18*0.5)+$Q$2-$N$2)/(2*($C18+$D18*0.5)*SQRT($Q$2)))-ATAN(ABS($P$2)/$O$2)) -> 774.2783316 | R18: ='Calcul CB'!$C$17+($C18+$D18)*COS(ACOS((($C18+$D18)*($C18+$D18)+$Q$2-$N$2)/(2*($C18+$D18)*SQRT($Q$2)))-ATAN(ABS($P$2)/$O$2)) -> 882.8352078 | S18: ='Calcul CB'!$D$17+($C18+$D18)*SIN(ACOS((($C18+$D18)*($C18+$D18)+$Q$2-$N$2)/(2*($C18+$D18)*SQRT($Q$2)))-ATAN(ABS($P$2)/$O$2)) -> 772.4488068 | T18: =(H18+J18+L18)/3 -> 133.7358135 | U18: ='Calcul CB'!$C$17+$C18*COS(ACOS(($C18*$C18+$X$2-$U$2)/(2*$C18*SQRT($X$2)))-ATAN(ABS($W$2)/$V$2)) -> 809.8010516 | V18: ='Calcul CB'!$D$17+$C18*SIN(ACOS(($C18*$C18+$X$2-$U$2)/(2*$C18*SQRT($X$2)))-ATAN(ABS($W$2)/$V$2)) -> 463.8184963 | W18: ='Calcul CB'!$C$17+($C18+$D18*0.5)*COS(ACOS((($C18+$D18*0.5)*($C18+$D18*0.5)+$X$2-$U$2)/(2*($C18+$D18*0.5)*SQRT($X$2)))-ATAN(ABS($W$2)/$V$2)) -> 889.9760032 | X18: ='Calcul CB'!$D$17+($C18+$D18*0.5)*SIN(ACOS((($C18+$D18*0.5)*($C18+$D18*0.5)+$X$2-$U$2)/(2*($C18+$D18*0.5)*SQRT($X$2)))-ATAN(ABS($W$2)/$V$2)) -> 455.1841899 | Y18: ='Calcul CB'!$C$17+($C18+$D18)*COS(ACOS((($C18+$D18)*($C18+$D18)+$X$2-$U$2)/(2*($C18+$D18)*SQRT($X$2)))-ATAN(ABS($W$2)/$V$2)) -> 969.88706 | Z18: ='Calcul CB'!$D$17+($C18+$D18)*SIN(ACOS((($C18+$D18)*($C18+$D18)+$X$2-$U$2)/(2*($C18+$D18)*SQRT($X$2)))-ATAN(ABS($W$2)/$V$2)) -> 437.977085 | AB18: ='Calcul CB'!$C$17+$C18*COS(ACOS(($C18*$C18+$AE$2-$AB$2)/(2*$C18*SQRT($AE$2)))-ATAN(ABS($AD$2)/$AC$2)) -> 190.9769499 | AC18: ='Calcul CB'!$D$17+$C18*SIN(ACOS(($C18*$C18+$AE$2-$AB$2)/(2*$C18*SQRT($AE$2)))-ATAN(ABS($AD$2)/$AC$2)) -> 909.4263723 | AD18: ='Calcul CB'!$C$17+($C18+$D18*0.5)*COS(ACOS((($C18+$D18*0.5)*($C18+$D18*0.5)+$AE$2-$AB$2)/(2*($C18+$D18*0.5)*SQRT($AE$2)))-ATAN(ABS($AD$2)/$AC$2)) -> 309.8384431 | AE18: ='Calcul CB'!$D$17+($C18+$D18*0.5)*SIN(ACOS((($C18+$D18*0.5)*($C18+$D18*0.5)+$AE$2-$AB$2)/(2*($C18+$D18*0.5)*SQRT($AE$2)))-ATAN(ABS($AD$2)/$AC$2)) -> 1009.636946 | AF18: ='Calcul CB'!$C$17+($C18+$D18)*COS(ACOS((($C18+$D18)*($C18+$D18)+$AE$2-$AB$2)/(2*($C18+$D18)*SQRT($AE$2)))-ATAN(ABS($AD$2)/$AC$2)) -> 438.4540519 | AG18: ='Calcul CB'!$D$17+($C18+$D18)*SIN(ACOS((($C18+$D18)*($C18+$D18)+$AE$2-$AB$2)/(2*($C18+$D18)*SQRT($AE$2)))-ATAN(ABS($AD$2)/$AC$2)) -> 1080.743782
A19: Vérin équipé, R/C, cat2, l0=620mm, c=300mm | B19: 2 | C19: 620 | D19: 300 | E19: TCVHN356330022 | G19: ='Calcul CB'!$J$23-('Choix vérin basc'!$C19+0.5*'Choix vérin basc'!$D19) -> -182.5577284 | H19: =ABS(G19) -> 182.5577284 | I19: ='Calcul CB'!$J$24-('Choix vérin basc'!$C19+0.5*'Choix vérin basc'!$D19) -> -333.3738903 | J19: =ABS(I19) -> 333.3738903 | K19: ='Calcul CB'!$J$25-('Choix vérin basc'!$C19+0.5*'Choix vérin basc'!$D19) -> 40.3912787 | L19: =ABS(K19) -> 40.3912787 | N19: ='Calcul CB'!$C$17+$C19*COS(ACOS(($C19*$C19+$Q$2-$N$2)/(2*$C19*SQRT($Q$2)))-ATAN(ABS($P$2)/$O$2)) -> 858.5816054 | O19: ='Calcul CB'!$D$17+$C19*SIN(ACOS(($C19*$C19+$Q$2-$N$2)/(2*$C19*SQRT($Q$2)))-ATAN(ABS($P$2)/$O$2)) -> 774.0393286 | P19: ='Calcul CB'!$C$17+($C19+$D19*0.5)*COS(ACOS((($C19+$D19*0.5)*($C19+$D19*0.5)+$Q$2-$N$2)/(2*($C19+$D19*0.5)*SQRT($Q$2)))-ATAN(ABS($P$2)/$O$2)) -> 1042.308891 | Q19: ='Calcul CB'!$D$17+($C19+$D19*0.5)*SIN(ACOS((($C19+$D19*0.5)*($C19+$D19*0.5)+$Q$2-$N$2)/(2*($C19+$D19*0.5)*SQRT($Q$2)))-ATAN(ABS($P$2)/$O$2)) -> 742.4312623 | R19: ='Calcul CB'!$C$17+($C19+$D19)*COS(ACOS((($C19+$D19)*($C19+$D19)+$Q$2-$N$2)/(2*($C19+$D19)*SQRT($Q$2)))-ATAN(ABS($P$2)/$O$2)) -> 1225.62412 | S19: ='Calcul CB'!$D$17+($C19+$D19)*SIN(ACOS((($C19+$D19)*($C19+$D19)+$Q$2-$N$2)/(2*($C19+$D19)*SQRT($Q$2)))-ATAN(ABS($P$2)/$O$2)) -> 660.3745116 | T19: =(H19+J19+L19)/3 -> 185.4409658 | U19: ='Calcul CB'!$C$17+$C19*COS(ACOS(($C19*$C19+$X$2-$U$2)/(2*$C19*SQRT($X$2)))-ATAN(ABS($W$2)/$V$2)) -> 949.9615859 | V19: ='Calcul CB'!$D$17+$C19*SIN(ACOS(($C19*$C19+$X$2-$U$2)/(2*$C19*SQRT($X$2)))-ATAN(ABS($W$2)/$V$2)) -> 443.0984029 | W19: ='Calcul CB'!$C$17+($C19+$D19*0.5)*COS(ACOS((($C19+$D19*0.5)*($C19+$D19*0.5)+$X$2-$U$2)/(2*($C19+$D19*0.5)*SQRT($X$2)))-ATAN(ABS($W$2)/$V$2)) -> 1097.728346 | X19: ='Calcul CB'!$D$17+($C19+$D19*0.5)*SIN(ACOS((($C19+$D19*0.5)*($C19+$D19*0.5)+$X$2-$U$2)/(2*($C19+$D19*0.5)*SQRT($X$2)))-ATAN(ABS($W$2)/$V$2)) -> 390.8968101 | Y19: ='Calcul CB'!$C$17+($C19+$D19)*COS(ACOS((($C19+$D19)*($C19+$D19)+$X$2-$U$2)/(2*($C19+$D19)*SQRT($X$2)))-ATAN(ABS($W$2)/$V$2)) -> 1238.513542 | Z19: ='Calcul CB'!$D$17+($C19+$D19)*SIN(ACOS((($C19+$D19)*($C19+$D19)+$X$2-$U$2)/(2*($C19+$D19)*SQRT($X$2)))-ATAN(ABS($W$2)/$V$2)) -> 305.0753863 | AB19: ='Calcul CB'!$C$17+$C19*COS(ACOS(($C19*$C19+$AE$2-$AB$2)/(2*$C19*SQRT($AE$2)))-ATAN(ABS($AD$2)/$AC$2)) -> 405.3303342 | AC19: ='Calcul CB'!$D$17+$C19*SIN(ACOS(($C19*$C19+$AE$2-$AB$2)/(2*$C19*SQRT($AE$2)))-ATAN(ABS($AD$2)/$AC$2)) -> 1065.406647 | AD19: ='Calcul CB'!$C$17+($C19+$D19*0.5)*COS(ACOS((($C19+$D19*0.5)*($C19+$D19*0.5)+$AE$2-$AB$2)/(2*($C19+$D19*0.5)*SQRT($AE$2)))-ATAN(ABS($AD$2)/$AC$2)) -> 669.5727291 | AE19: ='Calcul CB'!$D$17+($C19+$D19*0.5)*SIN(ACOS((($C19+$D19*0.5)*($C19+$D19*0.5)+$AE$2-$AB$2)/(2*($C19+$D19*0.5)*SQRT($AE$2)))-ATAN(ABS($AD$2)/$AC$2)) -> 1141.079128 | AF19: ='Calcul CB'!$C$17+($C19+$D19)*COS(ACOS((($C19+$D19)*($C19+$D19)+$AE$2-$AB$2)/(2*($C19+$D19)*SQRT($AE$2)))-ATAN(ABS($AD$2)/$AC$2)) -> 967.8322962 | AG19: ='Calcul CB'!$D$17+($C19+$D19)*SIN(ACOS((($C19+$D19)*($C19+$D19)+$AE$2-$AB$2)/(2*($C19+$D19)*SQRT($AE$2)))-ATAN(ABS($AD$2)/$AC$2)) -> 1113.000725
B21: Bras de relevage horizontaux | P21: Bras de relevage bas | Z21: Bras de relevage haut
A23: Vérin rentré
A48: Vérin mi-course
A73: Vérin sorti

Sheet Recap vérin et trianges mâles
A1: vérin disponibles
A2: lo | B2: c | C2: lo + 0,5xc | F2: Catégorie | G2: H (mm) | H2: X (mm) | I2: diamétre broche troisième point (mm) | J2: diamétre broche bras de relevage (mm)
A3: 390 | B3: 150 | C3: =A3+0.5*B3 -> 465 | F3: communal | G3: 420 | H3: 335
A4: 440 | B4: 200 | C4: =A4+0.5*B4 -> 540 | F4: communal | G4: 420 | H4: 370
A5: 490 | B5: 200 | C5: =A5+0.5*B5 -> 590 | F5: 0 | G5: 600 | H5: 480 | I5: 19 | J5: 22
A6: 550 | B6: 250 | C6: =A6+0.5*B6 -> 675 | F6: 1 | G6: 750 | H6: 680 | I6: 19 | J6: 22
A7: 550 | B7: 285 | C7: =A7+0.5*B7 -> 692.5 | F7: 2 | G7: 750 | H7: 825 | I7: 25 | J7: 28
A8: 580 | B8: 300 | C8: =A8+0.5*B8 -> 730 | F8: 3 | G8: 750 | H8: 950 | I8: 32 | J8: 36
A9: 590 | B9: 285 | C9: =A9+0.5*B9 -> 732.5
A10: 610 | B10: 350 | C10: =A10+0.5*B10 -> 785
A11: 620 | B11: 300 | C11: =A11+0.5*B11 -> 770
